Publisher Label,Publisher URI,"Supplier","Invoice ","Amount (£)","Purpose","Transaction Number","Payment Date","Organisational Unit","Cost Centre(T)","Internal category number"
"Wolverhampton City Council","http://opendatacommunities.org/id/metropolitan-district-council/wolverhampton","Access Tail Lift Services Limited","","57.44","Services - Professional Fees","190235278","27/05/16","Fleet Services","Fleet Management","R4400"
"Wolverhampton City Council","http://opendatacommunities.org/id/metropolitan-district-council/wolverhampton","Access Tail Lift Services Limited","","57.44","Services - Professional Fees","190235278","27/05/16","Fleet Services","Fleet Management","R4400"
"Wolverhampton City Council","http://opendatacommunities.org/id/metropolitan-district-council/wolverhampton","Access Tail Lift Services Limited","","57.44","Services - Professional Fees","190235278","27/05/16","Fleet Services","Fleet Management","R4400"
"Wolverhampton City Council","http://opendatacommunities.org/id/metropolitan-district-council/wolverhampton","Access Tail Lift Services Limited","","57.44","Services - Professional Fees","190235278","27/05/16","Fleet Services","Fleet Management","R4400"
"Wolverhampton City Council","http://opendatacommunities.org/id/metropolitan-district-council/wolverhampton","Access Tail Lift Services Limited","","57.44","Services - Professional Fees","190235280","27/05/16","Fleet Services","Fleet Management","R4400"
"Wolverhampton City Council","http://opendatacommunities.org/id/metropolitan-district-council/wolverhampton","Access Tail Lift Services Limited","","57.44","Services - Professional Fees","190235280","27/05/16","Fleet Services","Fleet Management","R4400"
"Wolverhampton City Council","http://opendatacommunities.org/id/metropolitan-district-council/wolverhampton","Access Tail Lift Services Limited","","57.44","Services - Professional Fees","190235280","27/05/16","Fleet Services","Fleet Management","R4400"
"Wolverhampton City Council","http://opendatacommunities.org/id/metropolitan-district-council/wolverhampton","Access Tail Lift Services Limited","","57.44","Services - Professional Fees","190235280","27/05/16","Fleet Services","Fleet Management","R4400"
"Wolverhampton City Council","http://opendatacommunities.org/id/metropolitan-district-council/wolverhampton","Access Tail Lift Services Limited","","57.44","Services - Professional Fees","190235280","27/05/16","Fleet Services","Fleet Management","R4400"
"Wolverhampton City Council","http://opendatacommunities.org/id/metropolitan-district-council/wolverhampton","Access Tail Lift Services Limited","","57.44","Services - Professional Fees","190235280","27/05/16","Fleet Services","Fleet Management","R4400"
"Wolverhampton City Council","http://opendatacommunities.org/id/metropolitan-district-council/wolverhampton","Access Tail Lift Services Limited","","57.44","Services - Professional Fees","190235280","27/05/16","Fleet Services","Fleet Management","R4400"
"Wolverhampton City Council","http://opendatacommunities.org/id/metropolitan-district-council/wolverhampton","Access Tail Lift Services Limited","","57.44","Services - Professional Fees","190235280","27/05/16","Fleet Services","Fleet Management","R4400"
"Wolverhampton City Council","http://opendatacommunities.org/id/metropolitan-district-council/wolverhampton","Access Tail Lift Services Limited","","18.22","Services - Professional Fees","190235280","27/05/16","Fleet Services","Fleet Management","R4400"
"Wolverhampton City Council","http://opendatacommunities.org/id/metropolitan-district-council/wolverhampton","Access Tail Lift Services Limited","","57.44","Services - Professional Fees","190235280","27/05/16","Fleet Services","Fleet Management","R4400"
"Wolverhampton City Council","http://opendatacommunities.org/id/metropolitan-district-council/wolverhampton","Access Tail Lift Services Limited","","57.44","Services - Professional Fees","190235280","27/05/16","Fleet Services","Fleet Management","R4400"
"Wolverhampton City Council","http://opendatacommunities.org/id/metropolitan-district-council/wolverhampton","Access Tail Lift Services Limited","","57.44","Services - Professional Fees","190235280","27/05/16","Fleet Services","Fleet Management","R4400"
"Wolverhampton City Council","http://opendatacommunities.org/id/metropolitan-district-council/wolverhampton","Access Tail Lift Services Limited","","57.44","Services - Professional Fees","190235280","27/05/16","Fleet Services","Fleet Management","R4400"
"Wolverhampton City Council","http://opendatacommunities.org/id/metropolitan-district-council/wolverhampton","Access Tail Lift Services Limited","","57.44","Services - Professional Fees","190235277","27/05/16","Fleet Services","Fleet Management","R4400"
"Wolverhampton City Council","http://opendatacommunities.org/id/metropolitan-district-council/wolverhampton","Access Tail Lift Services Limited","","57.44","Services - Professional Fees","190235277","27/05/16","Fleet Services","Fleet Management","R4400"
"Wolverhampton City Council","http://opendatacommunities.org/id/metropolitan-district-council/wolverhampton","Access Tail Lift Services Limited","","57.44","Services - Professional Fees","190235277","27/05/16","Fleet Services","Fleet Management","R4400"
"Wolverhampton City Council","http://opendatacommunities.org/id/metropolitan-district-council/wolverhampton","Access Tail Lift Services Limited","","57.44","Services - Professional Fees","190235278","27/05/16","Fleet Services","Fleet Management","R4400"
"Wolverhampton City Council","http://opendatacommunities.org/id/metropolitan-district-council/wolverhampton","Access Tail Lift Services Limited","","57.44","Services - Professional Fees","190235278","27/05/16","Fleet Services","Fleet Management","R4400"
"Wolverhampton City Council","http://opendatacommunities.org/id/metropolitan-district-council/wolverhampton","Access Tail Lift Services Limited","","57.44","Services - Professional Fees","190235278","27/05/16","Fleet Services","Fleet Management","R4400"
"Wolverhampton City Council","http://opendatacommunities.org/id/metropolitan-district-council/wolverhampton","Access Tail Lift Services Limited","","57.44","Services - Professional Fees","190235278","27/05/16","Fleet Services","Fleet Management","R4400"
"Wolverhampton City Council","http://opendatacommunities.org/id/metropolitan-district-council/wolverhampton","Access Tail Lift Services Limited","","57.44","Services - Professional Fees","190235279","27/05/16","Fleet Services","Fleet Management","R4400"
"Wolverhampton City Council","http://opendatacommunities.org/id/metropolitan-district-council/wolverhampton","Access Tail Lift Services Limited","","57.44","Services - Professional Fees","190235279","27/05/16","Fleet Services","Fleet Management","R4400"
"Wolverhampton City Council","http://opendatacommunities.org/id/metropolitan-district-council/wolverhampton","Access To Business","","14,003.00","Grant Payments","190228318","06/05/16","Enterprise & Skills","Access to Business","R4700"
"Wolverhampton City Council","http://opendatacommunities.org/id/metropolitan-district-council/wolverhampton","Acme-H&H Refrigeration","","402.00","Equipment - Catering","130119157","06/05/16","Catering","Education Catering - General Overheads","R4010"
"Wolverhampton City Council","http://opendatacommunities.org/id/metropolitan-district-council/wolverhampton","Acme-H&H Refrigeration","","776.00","Equipment - Catering","130119154","11/05/16","Catering","Education Catering - General Overheads","R4010"
"Wolverhampton City Council","http://opendatacommunities.org/id/metropolitan-district-council/wolverhampton","Acme-H&H Refrigeration","","776.00","Equipment - Catering","130119155","11/05/16","Catering","Education Catering - General Overheads","R4010"
"Wolverhampton City Council","http://opendatacommunities.org/id/metropolitan-district-council/wolverhampton","Acme-H&H Refrigeration","","402.00","Equipment - Catering","130119156","11/05/16","Catering","Education Catering - General Overheads","R4010"
"Wolverhampton City Council","http://opendatacommunities.org/id/metropolitan-district-council/wolverhampton","Acme-H&H Refrigeration","","402.00","Equipment - Catering","130119158","18/05/16","Catering","Education Catering - General Overheads","R4010"
"Wolverhampton City Council","http://opendatacommunities.org/id/metropolitan-district-council/wolverhampton","Acorn Environmental Mgt Group Limited","","2,272.18","Grounds Maintenance - Contract","130120255","20/05/16","Environmental Maintenance","Arbor Scheme","R2075"
"Wolverhampton City Council","http://opendatacommunities.org/id/metropolitan-district-council/wolverhampton","Acorn Environmental Mgt Group Limited","","11,852.61","Grounds Maintenance - Contract","130116717","13/05/16","Environmental Maintenance","Arbor Scheme","R2075"
"Wolverhampton City Council","http://opendatacommunities.org/id/metropolitan-district-council/wolverhampton","Acs Business Supplies Limited","","253.60","Stationery","130113279","13/05/16","ICTS","Document Centre - General","R4308"
"Wolverhampton City Council","http://opendatacommunities.org/id/metropolitan-district-council/wolverhampton","Acs Business Supplies Limited","","76.89","Stationery","130118671","13/05/16","Adult Education","Direct Delivery Team ( L.& D.)","R4308"
"Wolverhampton City Council","http://opendatacommunities.org/id/metropolitan-district-council/wolverhampton","Acs Business Supplies Limited","","53.98","Stationery","130118673","13/05/16","Strategic Finance","Corporate Procurement Unit","R4308"
"Wolverhampton City Council","http://opendatacommunities.org/id/metropolitan-district-council/wolverhampton","Acs Business Supplies Limited","","14.97","Stationery","130118053","13/05/16","ICTS","Document Centre - General","R4308"
"Wolverhampton City Council","http://opendatacommunities.org/id/metropolitan-district-council/wolverhampton","Acs Business Supplies Limited","","11.85","Stationery","130118060","13/05/16","Children in Need & Child Protection","CIN/CP Social Work Unit - Area 5","R4308"
"Wolverhampton City Council","http://opendatacommunities.org/id/metropolitan-district-council/wolverhampton","Acs Business Supplies Limited","","126.80","Stationery","130118061","13/05/16","Adult Education","Service Wide","R4308"
"Wolverhampton City Council","http://opendatacommunities.org/id/metropolitan-district-council/wolverhampton","Acs Business Supplies Limited","","126.80","Stationery","130118061","13/05/16","Adult Education","Language Studies Delivery Area","R4308"
"Wolverhampton City Council","http://opendatacommunities.org/id/metropolitan-district-council/wolverhampton","Acs Business Supplies Limited","","6.39","Stationery","130118056","13/05/16","Social Inclusion & Play Service","MAST - Central Team","R4308"
"Wolverhampton City Council","http://opendatacommunities.org/id/metropolitan-district-council/wolverhampton","Acs Business Supplies Limited","","253.60","Stationery","130118672","13/05/16","ICTS","Document Centre - General","R4308"
"Wolverhampton City Council","http://opendatacommunities.org/id/metropolitan-district-council/wolverhampton","Acs Business Supplies Limited","","32.02","Stationery","130118055","13/05/16","Cleaning & Caretaking Service","Cleaning of Buildings - General","R4308"
"Wolverhampton City Council","http://opendatacommunities.org/id/metropolitan-district-council/wolverhampton","Acs Business Supplies Limited","","45.98","Stationery","130118057","13/05/16","Safeguarding","Head of Service Quality and Safeguarding","R4308"
"Wolverhampton City Council","http://opendatacommunities.org/id/metropolitan-district-council/wolverhampton","Acs Business Supplies Limited","","26.41","Stationery","130118674","13/05/16","Leisure Services","Aldersley Leisure Village","R4308"
"Wolverhampton City Council","http://opendatacommunities.org/id/metropolitan-district-council/wolverhampton","Acs Business Supplies Limited","","253.60","Stationery","130114497","13/05/16","ICTS","Document Centre - General","R4308"
"Wolverhampton City Council","http://opendatacommunities.org/id/metropolitan-district-council/wolverhampton","Acs Business Supplies Limited","","31.66","Stationery","130114496","13/05/16","Welfare Rights & Financial Assessment","Welfare Rights","R4308"
"Wolverhampton City Council","http://opendatacommunities.org/id/metropolitan-district-council/wolverhampton","Acs Business Supplies Limited","","8.11","Stationery","130118670","13/05/16","Adult Education","The Maltings","R4308"
"Wolverhampton City Council","http://opendatacommunities.org/id/metropolitan-district-council/wolverhampton","Acs Business Supplies Limited","","55.94","Stationery","130118054","13/05/16","Democracy","Democratic Support","R4308"
"Wolverhampton City Council","http://opendatacommunities.org/id/metropolitan-district-council/wolverhampton","Acs Business Supplies Limited","","26.30","Stationery","130119490","20/05/16","Specialist Intensive Support Service","Upper Pendeford Farm Short Breaks Centre","R4308"
"Wolverhampton City Council","http://opendatacommunities.org/id/metropolitan-district-council/wolverhampton","Acs Business Supplies Limited","","123.38","Stationery","130118990","20/05/16","Strategic Finance","Corporate Procurement Unit","R4308"
"Wolverhampton City Council","http://opendatacommunities.org/id/metropolitan-district-council/wolverhampton","Acs Business Supplies Limited","","21.53","Stationery","130119493","20/05/16","Emergency Duty Team","Emergency Duty Team","R4308"
"Wolverhampton City Council","http://opendatacommunities.org/id/metropolitan-district-council/wolverhampton","Acs Business Supplies Limited","","304.31","Stationery","130119481","20/05/16","Library Services","Global Budgets","R4308"
"Wolverhampton City Council","http://opendatacommunities.org/id/metropolitan-district-council/wolverhampton","Acs Business Supplies Limited","","464.68","Stationery","130119488","20/05/16","Adult Education","Service Wide","R4308"
"Wolverhampton City Council","http://opendatacommunities.org/id/metropolitan-district-council/wolverhampton","Acs Business Supplies Limited","","9.76","Stationery","130118679","20/05/16","Leisure Services","Bert Williams Leisure Centre","R4308"
"Wolverhampton City Council","http://opendatacommunities.org/id/metropolitan-district-council/wolverhampton","Acs Business Supplies Limited","","4.69","Stationery","130118675","20/05/16","Leisure Services","Aldersley Leisure Village","R4308"
"Wolverhampton City Council","http://opendatacommunities.org/id/metropolitan-district-council/wolverhampton","Acs Business Supplies Limited","","50.72","Stationery","130118676","20/05/16","Leisure Services","Aldersley Leisure Village","R4308"
"Wolverhampton City Council","http://opendatacommunities.org/id/metropolitan-district-council/wolverhampton","Acs Business Supplies Limited","","253.60","Stationery","130119494","20/05/16","Early Intervention and Prevention","EIP Locality 8","R4308"
"Wolverhampton City Council","http://opendatacommunities.org/id/metropolitan-district-council/wolverhampton","Acs Business Supplies Limited","","81.60","Stationery","130119482","20/05/16","Strategic Director Place","Business Manager - Place","R4308"
"Wolverhampton City Council","http://opendatacommunities.org/id/metropolitan-district-council/wolverhampton","Acs Business Supplies Limited","","95.95","Stationery","130118677","20/05/16","Looked After Children","LAC Education Team (LACE)","R4308"
"Wolverhampton City Council","http://opendatacommunities.org/id/metropolitan-district-council/wolverhampton","Acs Business Supplies Limited","","40.59","Stationery","130118678","20/05/16","Looked After Children","LAC Transitions Team","R4308"
"Wolverhampton City Council","http://opendatacommunities.org/id/metropolitan-district-council/wolverhampton","Acs Business Supplies Limited","","253.60","Stationery","130118681","20/05/16","ICTS","Document Centre - General","R4308"
"Wolverhampton City Council","http://opendatacommunities.org/id/metropolitan-district-council/wolverhampton","Acs Business Supplies Limited","","73.08","Stationery","130119485","20/05/16","Leisure Services","Aldersley Leisure Village","R4308"
"Wolverhampton City Council","http://opendatacommunities.org/id/metropolitan-district-council/wolverhampton","Acs Business Supplies Limited","","104.48","Stationery","130118683","20/05/16","Visitor Economy","Box Office Administration","R4308"
"Wolverhampton City Council","http://opendatacommunities.org/id/metropolitan-district-council/wolverhampton","Acs Business Supplies Limited","","213.72","Stationery","130119489","20/05/16","Democracy","Members Expenses","R4308"
"Wolverhampton City Council","http://opendatacommunities.org/id/metropolitan-district-council/wolverhampton","Acs Business Supplies Limited","","38.04","Stationery","130118992","20/05/16","Leisure Services","Bert Williams Leisure Centre","R4308"
"Wolverhampton City Council","http://opendatacommunities.org/id/metropolitan-district-council/wolverhampton","Acs Business Supplies Limited","","29.85","Stationery","130119492","20/05/16","Communications & Marketing","Communications & Marketing - General","R4308"
"Wolverhampton City Council","http://opendatacommunities.org/id/metropolitan-district-council/wolverhampton","Acs Business Supplies Limited","","40.59","Stationery","130118842","20/05/16","Looked After Children","Looked After Team 1","R4308"
"Wolverhampton City Council","http://opendatacommunities.org/id/metropolitan-district-council/wolverhampton","Acs Business Supplies Limited","","40.59","Stationery","130118843","20/05/16","Looked After Children","Adoption Team","R4308"
"Wolverhampton City Council","http://opendatacommunities.org/id/metropolitan-district-council/wolverhampton","Acs Business Supplies Limited","","87.60","Stationery","130118680","20/05/16","Older People Provider Services","Reablement Team","R4308"
"Wolverhampton City Council","http://opendatacommunities.org/id/metropolitan-district-council/wolverhampton","Acs Business Supplies Limited","","489.30","Stationery","130119483","20/05/16","Legal Services","Legal Services","R4308"
"Wolverhampton City Council","http://opendatacommunities.org/id/metropolitan-district-council/wolverhampton","Acs Business Supplies Limited","","38.39","Stationery","130118682","20/05/16","Children in Need & Child Protection","CIN/CP Social Work Unit - Area 8","R4308"
"Wolverhampton City Council","http://opendatacommunities.org/id/metropolitan-district-council/wolverhampton","Acs Business Supplies Limited","","65.54","Stationery","130119491","20/05/16","Management and Administration","Public Health Support Costs","R4308"
"Wolverhampton City Council","http://opendatacommunities.org/id/metropolitan-district-council/wolverhampton","Acs Business Supplies Limited","","22.43","Stationery","130118988","20/05/16","Democracy","Democratic Support","R4308"
"Wolverhampton City Council","http://opendatacommunities.org/id/metropolitan-district-council/wolverhampton","Acs Business Supplies Limited","","231.07","Stationery","130119487","20/05/16","Parking Services","Advisory Road Markings and Disabled Bays","R4308"
"Wolverhampton City Council","http://opendatacommunities.org/id/metropolitan-district-council/wolverhampton","Acs Business Supplies Limited","","268.57","Stationery","130119495","20/05/16","Highways Maintenance","Planned Highways Maintenance","R4308"
"Wolverhampton City Council","http://opendatacommunities.org/id/metropolitan-district-council/wolverhampton","Acs Business Supplies Limited","","100.84","Stationery","130119496","20/05/16","Looked After Children","Adoption Team","R4308"
"Wolverhampton City Council","http://opendatacommunities.org/id/metropolitan-district-council/wolverhampton","Acs Business Supplies Limited","","25.31","Stationery","130119486","20/05/16","Older People Assessment & Care Management","Assessment Team (West)","R4308"
"Wolverhampton City Council","http://opendatacommunities.org/id/metropolitan-district-council/wolverhampton","Acs Business Supplies Limited","","257.57","Stationery","130118987","20/05/16","Corporate Administration","Register Office","R4308"
"Wolverhampton City Council","http://opendatacommunities.org/id/metropolitan-district-council/wolverhampton","Acs Business Supplies Limited","","32.40","Stationery","130117060","06/05/16","Enterprise & Skills","Connexions Contract","R4308"
"Wolverhampton City Council","http://opendatacommunities.org/id/metropolitan-district-council/wolverhampton","Acs Business Supplies Limited","","58.02","Stationery","130116934","06/05/16","Welfare Rights & Financial Assessment","Financial Assessments","R4308"
"Wolverhampton City Council","http://opendatacommunities.org/id/metropolitan-district-council/wolverhampton","Acs Business Supplies Limited","","37.03","Stationery","130117059","06/05/16","Revenues & Benefits","Revenues","R4308"
"Wolverhampton City Council","http://opendatacommunities.org/id/metropolitan-district-council/wolverhampton","Acs Business Supplies Limited","","-37.92","Stationery","130116527","06/05/16","Older People Assessment & Care Management","Assessment Team (North)","R4308"
"Wolverhampton City Council","http://opendatacommunities.org/id/metropolitan-district-council/wolverhampton","Acs Business Supplies Limited","","253.60","Stationery","130117928","06/05/16","ICTS","Document Centre - General","R4308"
"Wolverhampton City Council","http://opendatacommunities.org/id/metropolitan-district-council/wolverhampton","Acs Business Supplies Limited","","253.60","Stationery","130117927","06/05/16","ICTS","Document Centre - General","R4308"
"Wolverhampton City Council","http://opendatacommunities.org/id/metropolitan-district-council/wolverhampton","Acs Business Supplies Limited","","253.60","Stationery","130116940","06/05/16","ICTS","Document Centre - General","R4308"
"Wolverhampton City Council","http://opendatacommunities.org/id/metropolitan-district-council/wolverhampton","Acs Business Supplies Limited","","253.60","Stationery","130116936","06/05/16","ICTS","Document Centre - General","R4308"
"Wolverhampton City Council","http://opendatacommunities.org/id/metropolitan-district-council/wolverhampton","Acs Business Supplies Limited","","253.60","Stationery","130117402","06/05/16","ICTS","Document Centre - General","R4308"
"Wolverhampton City Council","http://opendatacommunities.org/id/metropolitan-district-council/wolverhampton","Acs Business Supplies Limited","","253.60","Stationery","130117742","06/05/16","ICTS","Document Centre - General","R4308"
"Wolverhampton City Council","http://opendatacommunities.org/id/metropolitan-district-council/wolverhampton","Acs Business Supplies Limited","","119.40","Stationery","130116935","06/05/16","Safeguarding","Head of Service Quality and Safeguarding","R4308"
"Wolverhampton City Council","http://opendatacommunities.org/id/metropolitan-district-council/wolverhampton","Acs Business Supplies Limited","","78.12","Stationery","130116932","06/05/16","ICTS","Document Centre - General","R4308"
"Wolverhampton City Council","http://opendatacommunities.org/id/metropolitan-district-council/wolverhampton","Acs Business Supplies Limited","","253.60","Stationery","130116366","04/05/16","ICTS","Document Centre - General","R4308"
"Wolverhampton City Council","http://opendatacommunities.org/id/metropolitan-district-council/wolverhampton","Acs Business Supplies Limited","","20.68","Stationery","130118059","18/05/16","Corporate Administration","Local Government Elections","R4308"
"Wolverhampton City Council","http://opendatacommunities.org/id/metropolitan-district-council/wolverhampton","Acs Business Supplies Limited","","20.68","Stationery","130118059","18/05/16","Corporate Administration","WM Police Commissioner Elections","R4308"
"Wolverhampton City Council","http://opendatacommunities.org/id/metropolitan-district-council/wolverhampton","Acs Business Supplies Limited","","35.52","Stationery","130116938","18/05/16","Markets","Wolverhampton Indoor and Open Market","R4308"
"Wolverhampton City Council","http://opendatacommunities.org/id/metropolitan-district-council/wolverhampton","Acs Business Supplies Limited","","16.10","Stationery","130119484","25/05/16","Children in Need & Child Protection","CIN/CP Social Work Unit - Area 8","R4308"
"Wolverhampton City Council","http://opendatacommunities.org/id/metropolitan-district-council/wolverhampton","Acs Business Supplies Limited","","16.10","Stationery","130120324","25/05/16","Children in Need & Child Protection","CIN/CP Social Work Unit - Area 8","R4308"
"Wolverhampton City Council","http://opendatacommunities.org/id/metropolitan-district-council/wolverhampton","Acs Business Supplies Limited","","18.99","Stationery","130116939","25/05/16","Looked After Children","Pupil Premium","R4308"
"Wolverhampton City Council","http://opendatacommunities.org/id/metropolitan-district-council/wolverhampton","Acs Business Supplies Limited","","185.79","Stationery","130117741","25/05/16","Looked After Children","Looked After Team 1","R4308"
"Wolverhampton City Council","http://opendatacommunities.org/id/metropolitan-district-council/wolverhampton","Acs Business Supplies Limited","","162.36","Stationery","130117740","25/05/16","Looked After Children","Looked After Team 1","R4308"
"Wolverhampton City Council","http://opendatacommunities.org/id/metropolitan-district-council/wolverhampton","Acs Business Supplies Limited","","32.40","Stationery","130116933","25/05/16","Enterprise & Skills","Connexions Contract","R4308"
"Wolverhampton City Council","http://opendatacommunities.org/id/metropolitan-district-council/wolverhampton","Acs Business Supplies Limited","","6.68","Stationery","130116937","27/05/16","Strategic Finance","Strategic Finance","R4308"
"Wolverhampton City Council","http://opendatacommunities.org/id/metropolitan-district-council/wolverhampton","Activities 4 U","","210.00","Services - Supplies and Services to service users","130113780","25/05/16","Older People Provider Services","Woden Resource Centre","R4408"
"Wolverhampton City Council","http://opendatacommunities.org/id/metropolitan-district-council/wolverhampton","Activities 4 U","","-210.00","Services - Supplies and Services to service users","130113780","25/05/16","Older People Provider Services","Woden Resource Centre","R4408"
"Wolverhampton City Council","http://opendatacommunities.org/id/metropolitan-district-council/wolverhampton","Activities 4 U","","210.00","Services - Supplies and Services to service users","130113780","25/05/16","Older People Provider Services","Woden Resource Centre","R4408"
"Wolverhampton City Council","http://opendatacommunities.org/id/metropolitan-district-council/wolverhampton","Activities 4 U","","90.00","Services - Supplies and Services to service users","130116087","25/05/16","Older People Provider Services","Woden Resource Centre","R4408"
"Wolverhampton City Council","http://opendatacommunities.org/id/metropolitan-district-council/wolverhampton","Activities 4 U","","-90.00","Services - Supplies and Services to service users","130116087","25/05/16","Older People Provider Services","Woden Resource Centre","R4408"
"Wolverhampton City Council","http://opendatacommunities.org/id/metropolitan-district-council/wolverhampton","Activities 4 U","","90.00","Services - Supplies and Services to service users","130116087","25/05/16","Older People Provider Services","Woden Resource Centre","R4408"
"Wolverhampton City Council","http://opendatacommunities.org/id/metropolitan-district-council/wolverhampton","Adt Fire And Security PLC","","356.54","Fixtures and Fittings - R&M","130121174","20/05/16","Engineering & Civic Centre","Statutory Services (10RM)","R2502"
"Wolverhampton City Council","http://opendatacommunities.org/id/metropolitan-district-council/wolverhampton","Adt Fire And Security PLC","","184.00","Fixtures and Fittings - R&M","130118384","13/05/16","Social Inclusion & Play Service","MAST 8 - Wednesfield","R2502"
"Wolverhampton City Council","http://opendatacommunities.org/id/metropolitan-district-council/wolverhampton","Adt Fire And Security PLC","","550.93","Fixtures and Fittings - R&M","130118380","13/05/16","Social Inclusion & Play Service","MAST 8 - Wednesfield","R2502"
"Wolverhampton City Council","http://opendatacommunities.org/id/metropolitan-district-council/wolverhampton","Adt Fire And Security PLC","","196.00","Fixtures and Fittings - R&M","130118381","13/05/16","Social Inclusion & Play Service","MAST 8 - Wednesfield","R2502"
"Wolverhampton City Council","http://opendatacommunities.org/id/metropolitan-district-council/wolverhampton","Adt Fire And Security PLC","","39.00","Equipment - Purchase","130120148","13/05/16","Short Breaks Commissioning","Short Breaks","R4000"
"Wolverhampton City Council","http://opendatacommunities.org/id/metropolitan-district-council/wolverhampton","Adt Fire And Security PLC","","812.75","Equipment - Purchase","130120147","13/05/16","Short Breaks Commissioning","Short Breaks","R4000"
"Wolverhampton City Council","http://opendatacommunities.org/id/metropolitan-district-council/wolverhampton","Adt Fire And Security PLC","","119.16","Fixtures and Fittings - R&M","130118557","13/05/16","Bereavement Services","Cemeteries","R2502"
"Wolverhampton City Council","http://opendatacommunities.org/id/metropolitan-district-council/wolverhampton","Adt Fire And Security PLC","","67.50","Fixtures and Fittings - R&M","130116815","04/05/16","Bereavement Services","Cemeteries","R2502"
"Wolverhampton City Council","http://opendatacommunities.org/id/metropolitan-district-council/wolverhampton","Adt Fire And Security PLC","","67.50","Services - Security","130117448","04/05/16","Social Inclusion & Play Service","MAST 3 - Graiseley","R4405"
"Wolverhampton City Council","http://opendatacommunities.org/id/metropolitan-district-council/wolverhampton","Adt Fire And Security PLC","","640.60","Fixtures and Fittings - R&M","130120373","18/05/16","Cleaning & Caretaking Service","Public Conveniences","R2502"
"Wolverhampton City Council","http://opendatacommunities.org/id/metropolitan-district-council/wolverhampton","Adt Fire And Security PLC","","471.91","Fixtures and Fittings - R&M","130120372","18/05/16","Engineering & Civic Centre","Management of Vacant Properties","R2502"
"Wolverhampton City Council","http://opendatacommunities.org/id/metropolitan-district-council/wolverhampton","Adt Fire And Security PLC","","530.25","Fixtures and Fittings - R&M","130120371","18/05/16","Community Centres (Corporate Landlord)","Caretakers Community Centre","R2502"
"Wolverhampton City Council","http://opendatacommunities.org/id/metropolitan-district-council/wolverhampton","Adt Fire And Security PLC","","720.47","Fixtures and Fittings - R&M","130120367","18/05/16","Community Centres (Corporate Landlord)","Caretakers Community Centre","R2502"
"Wolverhampton City Council","http://opendatacommunities.org/id/metropolitan-district-council/wolverhampton","Adt Fire And Security PLC","","710.38","Fixtures and Fittings - R&M","130120368","18/05/16","Community Centres (Corporate Landlord)","Caretakers Community Centre","R2502"
"Wolverhampton City Council","http://opendatacommunities.org/id/metropolitan-district-council/wolverhampton","Adt Fire And Security PLC","","42.50","Fixtures and Fittings - R&M","130120370","18/05/16","Community Centres (Corporate Landlord)","Caretakers Community Centre","R2502"
"Wolverhampton City Council","http://opendatacommunities.org/id/metropolitan-district-council/wolverhampton","Adt Fire And Security PLC","","67.50","Fixtures and Fittings - R&M","130120223","18/05/16","Bereavement Services","Cemeteries","R2502"
"Wolverhampton City Council","http://opendatacommunities.org/id/metropolitan-district-council/wolverhampton","Adt Fire And Security PLC","","107.21","Fixtures and Fittings - R&M","130121910","25/05/16","Culture Arts & Heritage","Art Gallery","R2502"
"Wolverhampton City Council","http://opendatacommunities.org/id/metropolitan-district-council/wolverhampton","Adt Fire And Security PLC","","327.55","Fixtures and Fittings - R&M","130120374","25/05/16","Community Centres (Corporate Landlord)","Caretakers Community Centre","R2502"
"Wolverhampton City Council","http://opendatacommunities.org/id/metropolitan-district-council/wolverhampton","Adt Fire And Security PLC","","184.00","Fixtures and Fittings - R&M","130121908","25/05/16","Culture Arts & Heritage","Bantock House Museum","R2502"
"Wolverhampton City Council","http://opendatacommunities.org/id/metropolitan-district-council/wolverhampton","Adt Fire And Security PLC","","233.00","Fixtures and Fittings - R&M","130121912","25/05/16","Culture Arts & Heritage","Art Gallery","R2502"
"Wolverhampton City Council","http://opendatacommunities.org/id/metropolitan-district-council/wolverhampton","Adt Fire And Security PLC","","291.21","Fixtures and Fittings - R&M","130121911","25/05/16","Culture Arts & Heritage","Art Gallery","R2502"
"Wolverhampton City Council","http://opendatacommunities.org/id/metropolitan-district-council/wolverhampton","Adt Fire And Security PLC","","184.00","Fixtures and Fittings - R&M","130121913","25/05/16","Culture Arts & Heritage","Art Gallery","R2502"
"Wolverhampton City Council","http://opendatacommunities.org/id/metropolitan-district-council/wolverhampton","Adt Fire And Security PLC","","61.25","Services - Security","130122129","27/05/16","Social Inclusion & Play Service","MAST 3 - Graiseley","R4405"
"Wolverhampton City Council","http://opendatacommunities.org/id/metropolitan-district-council/wolverhampton","Af Blakemore/Blakemore Foodservice","","48.95","Provisions (Not for resale)","130118571","13/05/16","Library Services","Central Children�s Library","R4101"
"Wolverhampton City Council","http://opendatacommunities.org/id/metropolitan-district-council/wolverhampton","Af Blakemore/Blakemore Foodservice","","-48.95","Provisions (Not for resale)","130118571","13/05/16","Library Services","Central Children�s Library","R4101"
"Wolverhampton City Council","http://opendatacommunities.org/id/metropolitan-district-council/wolverhampton","Af Blakemore/Blakemore Foodservice","","45.83","Provisions (Not for resale)","130118571","13/05/16","Library Services","Central Children�s Library","R4101"
"Wolverhampton City Council","http://opendatacommunities.org/id/metropolitan-district-council/wolverhampton","Af Blakemore/Blakemore Foodservice","","1,192.28","Provisions (Resale)","130117212","13/05/16","Catering","Bert Williams Leisure Centre Caf�","R4102"
"Wolverhampton City Council","http://opendatacommunities.org/id/metropolitan-district-council/wolverhampton","Af Blakemore/Blakemore Foodservice","","-1,192.28","Provisions (Resale)","130117212","13/05/16","Catering","Bert Williams Leisure Centre Caf�","R4102"
"Wolverhampton City Council","http://opendatacommunities.org/id/metropolitan-district-council/wolverhampton","Af Blakemore/Blakemore Foodservice","","603.20","Provisions (Resale)","130117212","13/05/16","Catering","Bert Williams Leisure Centre Caf�","R4102"
"Wolverhampton City Council","http://opendatacommunities.org/id/metropolitan-district-council/wolverhampton","Af Blakemore/Blakemore Foodservice","","589.08","Provisions (Resale)","130117212","13/05/16","Catering","Bert Williams Leisure Centre Caf�","R4102"
"Wolverhampton City Council","http://opendatacommunities.org/id/metropolitan-district-council/wolverhampton","Af Blakemore/Blakemore Foodservice","","2,345.34","Provisions (Resale)","130117408","13/05/16","Catering","Civic Centre Catering","R4102"
"Wolverhampton City Council","http://opendatacommunities.org/id/metropolitan-district-council/wolverhampton","Af Blakemore/Blakemore Foodservice","","-2,345.34","Provisions (Resale)","130117408","13/05/16","Catering","Civic Centre Catering","R4102"
"Wolverhampton City Council","http://opendatacommunities.org/id/metropolitan-district-council/wolverhampton","Af Blakemore/Blakemore Foodservice","","1,135.92","Provisions (Resale)","130117408","13/05/16","Catering","Civic Centre Catering","R4102"
"Wolverhampton City Council","http://opendatacommunities.org/id/metropolitan-district-council/wolverhampton","Af Blakemore/Blakemore Foodservice","","1,209.42","Provisions (Resale)","130117408","13/05/16","Catering","Civic Centre Catering","R4102"
"Wolverhampton City Council","http://opendatacommunities.org/id/metropolitan-district-council/wolverhampton","Af Blakemore/Blakemore Foodservice","","60,746.59","Provisions (Not for resale)","130117407","13/05/16","Catering","Education Catering - General Overheads","R4101"
"Wolverhampton City Council","http://opendatacommunities.org/id/metropolitan-district-council/wolverhampton","Af Blakemore/Blakemore Foodservice","","-60,746.59","Provisions (Not for resale)","130117407","13/05/16","Catering","Education Catering - General Overheads","R4101"
"Wolverhampton City Council","http://opendatacommunities.org/id/metropolitan-district-council/wolverhampton","Af Blakemore/Blakemore Foodservice","","7,779.99","Provisions (Not for resale)","130117407","13/05/16","Catering","Education Catering - General Overheads","R4101"
"Wolverhampton City Council","http://opendatacommunities.org/id/metropolitan-district-council/wolverhampton","Af Blakemore/Blakemore Foodservice","","52,966.60","Provisions (Not for resale)","130117407","13/05/16","Catering","Education Catering - General Overheads","R4101"
"Wolverhampton City Council","http://opendatacommunities.org/id/metropolitan-district-council/wolverhampton","Af Blakemore/Blakemore Foodservice","","935.67","Provisions (Resale)","130117213","13/05/16","Catering","Civic Centre Catering","R4102"
"Wolverhampton City Council","http://opendatacommunities.org/id/metropolitan-district-council/wolverhampton","Af Blakemore/Blakemore Foodservice","","108.72","Provisions (Not for resale)","130117992","13/05/16","Learning Disability Provider","Support Plus","R4101"
"Wolverhampton City Council","http://opendatacommunities.org/id/metropolitan-district-council/wolverhampton","Af Blakemore/Blakemore Foodservice","","15.96","Provisions (Resale)","130117993","13/05/16","Learning Disability Provider","Support Plus","R4102"
"Wolverhampton City Council","http://opendatacommunities.org/id/metropolitan-district-council/wolverhampton","Af Blakemore/Blakemore Foodservice","","678.78","Provisions (Not for resale)","130117211","13/05/16","Catering","Bert Williams Leisure Centre Caf�","R4101"
"Wolverhampton City Council","http://opendatacommunities.org/id/metropolitan-district-council/wolverhampton","Af Blakemore/Blakemore Foodservice","","-678.78","Provisions (Not for resale)","130117211","13/05/16","Catering","Bert Williams Leisure Centre Caf�","R4101"
"Wolverhampton City Council","http://opendatacommunities.org/id/metropolitan-district-council/wolverhampton","Af Blakemore/Blakemore Foodservice","","24.64","Provisions (Not for resale)","130117211","13/05/16","Catering","Bert Williams Leisure Centre Caf�","R4101"
"Wolverhampton City Council","http://opendatacommunities.org/id/metropolitan-district-council/wolverhampton","Af Blakemore/Blakemore Foodservice","","654.14","Provisions (Not for resale)","130117211","13/05/16","Catering","Bert Williams Leisure Centre Caf�","R4101"
"Wolverhampton City Council","http://opendatacommunities.org/id/metropolitan-district-council/wolverhampton","Af Blakemore/Blakemore Foodservice","","458.36","Provisions (Resale)","130117214","13/05/16","Catering","Meals on Wheels","R4102"
"Wolverhampton City Council","http://opendatacommunities.org/id/metropolitan-district-council/wolverhampton","Af Blakemore/Blakemore Foodservice","","-458.36","Provisions (Resale)","130117214","13/05/16","Catering","Meals on Wheels","R4102"
"Wolverhampton City Council","http://opendatacommunities.org/id/metropolitan-district-council/wolverhampton","Af Blakemore/Blakemore Foodservice","","441.40","Provisions (Resale)","130117214","13/05/16","Catering","Meals on Wheels","R4102"
"Wolverhampton City Council","http://opendatacommunities.org/id/metropolitan-district-council/wolverhampton","Af Blakemore/Blakemore Foodservice","","16.96","Provisions (Resale)","130117214","13/05/16","Catering","Meals on Wheels","R4102"
"Wolverhampton City Council","http://opendatacommunities.org/id/metropolitan-district-council/wolverhampton","Af Blakemore/Blakemore Foodservice","","85,749.45","Provisions (Not for resale)","130117210","13/05/16","Catering","Education Catering - General Overheads","R4101"
"Wolverhampton City Council","http://opendatacommunities.org/id/metropolitan-district-council/wolverhampton","Af Blakemore/Blakemore Foodservice","","-85,749.45","Provisions (Not for resale)","130117210","13/05/16","Catering","Education Catering - General Overheads","R4101"
"Wolverhampton City Council","http://opendatacommunities.org/id/metropolitan-district-council/wolverhampton","Af Blakemore/Blakemore Foodservice","","73.04","Provisions (Not for resale)","130117210","13/05/16","Catering","Education Catering - General Overheads","R4101"
"Wolverhampton City Council","http://opendatacommunities.org/id/metropolitan-district-council/wolverhampton","Af Blakemore/Blakemore Foodservice","","85,676.41","Provisions (Not for resale)","130117210","13/05/16","Catering","Education Catering - General Overheads","R4101"
"Wolverhampton City Council","http://opendatacommunities.org/id/metropolitan-district-council/wolverhampton","Af Blakemore/Blakemore Foodservice","","497.01","Provisions (Not for resale)","130115462","04/05/16","Leisure Services","WV Active Catering","R4101"
"Wolverhampton City Council","http://opendatacommunities.org/id/metropolitan-district-council/wolverhampton","Af Blakemore/Blakemore Foodservice","","-497.01","Provisions (Not for resale)","130115462","04/05/16","Leisure Services","WV Active Catering","R4101"
"Wolverhampton City Council","http://opendatacommunities.org/id/metropolitan-district-council/wolverhampton","Af Blakemore/Blakemore Foodservice","","342.79","Provisions (Not for resale)","130115462","04/05/16","Leisure Services","WV Active Catering","R4101"
"Wolverhampton City Council","http://opendatacommunities.org/id/metropolitan-district-council/wolverhampton","Af Blakemore/Blakemore Foodservice","","154.22","Provisions (Not for resale)","130115462","04/05/16","Leisure Services","WV Active Catering","R4101"
"Wolverhampton City Council","http://opendatacommunities.org/id/metropolitan-district-council/wolverhampton","Af Blakemore/Blakemore Foodservice","","2,298.65","Provisions (Not for resale)","130115708","04/05/16","Leisure Services","WV Active Catering","R4101"
"Wolverhampton City Council","http://opendatacommunities.org/id/metropolitan-district-council/wolverhampton","Af Blakemore/Blakemore Foodservice","","-2,298.65","Provisions (Not for resale)","130115708","04/05/16","Leisure Services","WV Active Catering","R4101"
"Wolverhampton City Council","http://opendatacommunities.org/id/metropolitan-district-council/wolverhampton","Af Blakemore/Blakemore Foodservice","","1,663.99","Provisions (Not for resale)","130115708","04/05/16","Leisure Services","WV Active Catering","R4101"
"Wolverhampton City Council","http://opendatacommunities.org/id/metropolitan-district-council/wolverhampton","Af Blakemore/Blakemore Foodservice","","634.66","Provisions (Not for resale)","130115708","04/05/16","Leisure Services","WV Active Catering","R4101"
"Wolverhampton City Council","http://opendatacommunities.org/id/metropolitan-district-council/wolverhampton","Af Blakemore/Blakemore Foodservice","","-40.95","Provisions (Not for resale)","130117670","04/05/16","Adult Education","Discretionary Fund","R4101"
"Wolverhampton City Council","http://opendatacommunities.org/id/metropolitan-district-council/wolverhampton","Af Blakemore/Blakemore Foodservice","","40.95","Provisions (Not for resale)","130117062","04/05/16","Adult Education","Discretionary Fund","R4101"
"Wolverhampton City Council","http://opendatacommunities.org/id/metropolitan-district-council/wolverhampton","Af Blakemore/Blakemore Foodservice","","303.26","Provisions (Not for resale)","130115463","04/05/16","Leisure Services","WV Active Catering","R4101"
"Wolverhampton City Council","http://opendatacommunities.org/id/metropolitan-district-council/wolverhampton","Af Blakemore/Blakemore Foodservice","","-303.26","Provisions (Not for resale)","130115463","04/05/16","Leisure Services","WV Active Catering","R4101"
"Wolverhampton City Council","http://opendatacommunities.org/id/metropolitan-district-council/wolverhampton","Af Blakemore/Blakemore Foodservice","","303.26","Provisions (Not for resale)","130115463","04/05/16","Leisure Services","WV Active Catering","R4101"
"Wolverhampton City Council","http://opendatacommunities.org/id/metropolitan-district-council/wolverhampton","After Adoption","","8,182.50","Services - Professional Fees","130118195","04/05/16","Looked After Children","Adoption Support Fund","R4400"
"Wolverhampton City Council","http://opendatacommunities.org/id/metropolitan-district-council/wolverhampton","Aggregate Industries UK Limited","","238.88","Materials","130118156","20/05/16","Highways Maintenance","Planned Highways Maintenance","R4007"
"Wolverhampton City Council","http://opendatacommunities.org/id/metropolitan-district-council/wolverhampton","Agilisys Limited","","-12,175.00","Computing - Purchase of Software","130099768","20/05/16","Central Corporate Budgets","FutureWorks Programme Team","R4531"
"Wolverhampton City Council","http://opendatacommunities.org/id/metropolitan-district-council/wolverhampton","Agilisys Limited","","5,800.00","Computing - Purchase of Software","130058498","20/05/16","Central Corporate Budgets","FutureWorks Programme Team","R4531"
"Wolverhampton City Council","http://opendatacommunities.org/id/metropolitan-district-council/wolverhampton","Agilisys Limited","","6,375.00","Computing - Purchase of Software","130058488","20/05/16","Central Corporate Budgets","FutureWorks Programme Team","R4531"
"Wolverhampton City Council","http://opendatacommunities.org/id/metropolitan-district-council/wolverhampton","Agilisys Limited","","-21,275.00","Computing - Purchase of Software","130099769","04/05/16","Central Corporate Budgets","FutureWorks Programme Team","R4531"
"Wolverhampton City Council","http://opendatacommunities.org/id/metropolitan-district-council/wolverhampton","Agilisys Limited","","21,275.00","Computing - Purchase of Software","130058489","04/05/16","Central Corporate Budgets","FutureWorks Programme Team","R4531"
"Wolverhampton City Council","http://opendatacommunities.org/id/metropolitan-district-council/wolverhampton","Aidapt Bathrooms Limited","","1,592.00","Equipment - Purchase","130121151","20/05/16","Independent Living Service","Independent Living Service","R4000"
"Wolverhampton City Council","http://opendatacommunities.org/id/metropolitan-district-council/wolverhampton","Aidapt Bathrooms Limited","","49.50","Equipment - Purchase","130121150","20/05/16","Independent Living Service","Independent Living Service","R4000"
"Wolverhampton City Council","http://opendatacommunities.org/id/metropolitan-district-council/wolverhampton","Aidservice Limited","","174.20","Equipment - Purchase","130117155","04/05/16","Independent Living Service","Independent Living Service","R4000"
"Wolverhampton City Council","http://opendatacommunities.org/id/metropolitan-district-council/wolverhampton","Aidservice Limited","","212.00","Equipment - Purchase","130116850","04/05/16","Independent Living Service","Independent Living Service","R4000"
"Wolverhampton City Council","http://opendatacommunities.org/id/metropolitan-district-council/wolverhampton","Air Methods Limited","","2,702.92","R&M - Departmental planned (external)","130120832","20/05/16","Engineering & Civic Centre","Civic Centre","R2001"
"Wolverhampton City Council","http://opendatacommunities.org/id/metropolitan-district-council/wolverhampton","Air Methods Limited","","650.60","Equipment - R & M","190229966","11/05/16","Fleet Services","Fleet Management","R4003"
"Wolverhampton City Council","http://opendatacommunities.org/id/metropolitan-district-council/wolverhampton","Airport Express West Midlands Limited","","500.00","Client Transport","130119544","20/05/16","School Planning & Resources","Special - Transport","R3042"
"Wolverhampton City Council","http://opendatacommunities.org/id/metropolitan-district-council/wolverhampton","Airport Express West Midlands Limited","","980.00","Client Transport","130114810","13/05/16","School Planning & Resources","Secondary- Transport","R3042"
"Wolverhampton City Council","http://opendatacommunities.org/id/metropolitan-district-council/wolverhampton","Airport Express West Midlands Limited","","1,200.00","Client Transport","130119545","11/05/16","School Planning & Resources","Special - Transport","R3042"
"Wolverhampton City Council","http://opendatacommunities.org/id/metropolitan-district-council/wolverhampton","Airport Express West Midlands Limited","","1,050.00","Client Transport","130119546","11/05/16","School Planning & Resources","Secondary- Transport","R3042"
"Wolverhampton City Council","http://opendatacommunities.org/id/metropolitan-district-council/wolverhampton","Airport-Link","","1,425.00","Client Transport","130119880","11/05/16","Schools","Pupil Referral Units ISB","R3042"
"Wolverhampton City Council","http://opendatacommunities.org/id/metropolitan-district-council/wolverhampton","Airport-Link","","1,486.20","Client Transport","130119879","11/05/16","Schools","Pupil Referral Units ISB","R3042"
"Wolverhampton City Council","http://opendatacommunities.org/id/metropolitan-district-council/wolverhampton","AKW Medi-Care Limited","","128.57","Equipment - R & M","130118897","06/05/16","Independent Living Service","Independent Living Service","R4003"
"Wolverhampton City Council","http://opendatacommunities.org/id/metropolitan-district-council/wolverhampton","AKW Medi-Care Limited","","916.00","Adaptations","130118736","04/05/16","Independent Living Service","Independent Living Service","R4411"
"Wolverhampton City Council","http://opendatacommunities.org/id/metropolitan-district-council/wolverhampton","Albert Jagger Limited","","90.84","Protective Clothing","190231692","18/05/16","Fleet Services","Fleet Management","R4200"
"Wolverhampton City Council","http://opendatacommunities.org/id/metropolitan-district-council/wolverhampton","Albrighton Medical Practice","","40.00","Medical Fees","190230055","11/05/16","Youth Services","Health Team","R1400"
"Wolverhampton City Council","http://opendatacommunities.org/id/metropolitan-district-council/wolverhampton","Aldersley High Sch/Aldersley Acad Tr","","2,272.50","Acquisition of Land and Buildings","130118041","06/05/16","","Sports Investment Strategy","C1000"
"Wolverhampton City Council","http://opendatacommunities.org/id/metropolitan-district-council/wolverhampton","Aldersley High Sch/Aldersley Acad Tr","","-6,257.15","R&M - Departmental planned (external)","130120110","18/05/16","Environmental Maintenance","Parks / Open Spaces - Repairs & Maintenance","R2001"
"Wolverhampton City Council","http://opendatacommunities.org/id/metropolitan-district-council/wolverhampton","Aldersley High Sch/Aldersley Acad Tr","","6,257.15","R&M - Departmental planned (external)","130117196","18/05/16","Environmental Maintenance","Parks / Open Spaces - Repairs & Maintenance","R2001"
"Wolverhampton City Council","http://opendatacommunities.org/id/metropolitan-district-council/wolverhampton","Aldersley High Sch/Aldersley Acad Tr","","3,984.65","R&M - Departmental planned (external)","130120478","18/05/16","Environmental Maintenance","Parks / Open Spaces - Repairs & Maintenance","R2001"
"Wolverhampton City Council","http://opendatacommunities.org/id/metropolitan-district-council/wolverhampton","Aldridge Trimming","","95.00","Equipment - Purchase","190235035","27/05/16","Fleet Services","Fleet Management","R4000"
"Wolverhampton City Council","http://opendatacommunities.org/id/metropolitan-district-council/wolverhampton","Alexander Dennis Limited","","356.24","Equipment - Purchase","190229921","11/05/16","Fleet Services","Fleet Management","R4000"
"Wolverhampton City Council","http://opendatacommunities.org/id/metropolitan-district-council/wolverhampton","Alice Whyley Creative Wonderland","","500.00","Services - Professional Fees","130116196","04/05/16","Mental Health Commissioning","Head Start Wolverhampton","R4400"
"Wolverhampton City Council","http://opendatacommunities.org/id/metropolitan-district-council/wolverhampton","Alice Whyley Creative Wonderland","","-500.00","Services - Professional Fees","130116196","04/05/16","Mental Health Commissioning","Head Start Wolverhampton","R4400"
"Wolverhampton City Council","http://opendatacommunities.org/id/metropolitan-district-council/wolverhampton","Alice Whyley Creative Wonderland","","500.00","Services - Professional Fees","130116196","04/05/16","Mental Health Commissioning","Head Start Wolverhampton","R4400"
"Wolverhampton City Council","http://opendatacommunities.org/id/metropolitan-district-council/wolverhampton","Alice Whyley Creative Wonderland","","1,500.00","Services - Consultants","130115543","04/05/16","School Planning & Resources","Technical Support","R4404"
"Wolverhampton City Council","http://opendatacommunities.org/id/metropolitan-district-council/wolverhampton","All Saints Action Network Limited","","200.00","Grant Payments to Individuals","190227606","04/05/16","Looked After Children","LAC Education Team (LACE)","R6402"
"Wolverhampton City Council","http://opendatacommunities.org/id/metropolitan-district-council/wolverhampton","Allsorts Office Supplies Limited","","209.00","Construction and Conversion","130120254","18/05/16","","Primary Expansion Programme","C1100"
"Wolverhampton City Council","http://opendatacommunities.org/id/metropolitan-district-council/wolverhampton","Allstar Business Solutions Limited","","73.12","Petrol","190229945","11/05/16","Fleet Services","Fleet Management","R3000"
"Wolverhampton City Council","http://opendatacommunities.org/id/metropolitan-district-council/wolverhampton","Allstar Business Solutions Limited","","1,114.20","Petrol","190229944","11/05/16","Fleet Services","Fleet Management","R3000"
"Wolverhampton City Council","http://opendatacommunities.org/id/metropolitan-district-council/wolverhampton","Allstar Business Solutions Limited","","14.71","Petrol","190227477","04/05/16","Fleet Services","Fleet Management","R3000"
"Wolverhampton City Council","http://opendatacommunities.org/id/metropolitan-district-council/wolverhampton","Allstar Business Solutions Limited","","14.71","Petrol","190227591","04/05/16","Fleet Services","Fleet Management","R3000"
"Wolverhampton City Council","http://opendatacommunities.org/id/metropolitan-district-council/wolverhampton","Allstar Business Solutions Limited","","1,161.98","Petrol","190235312","27/05/16","Fleet Services","Fleet Management","R3000"
"Wolverhampton City Council","http://opendatacommunities.org/id/metropolitan-district-council/wolverhampton","Alpharm Limited","","8.78","TPP - Public Health Contracts","190234481","25/05/16","Contracts","Sexual Health","R5060"
"Wolverhampton City Council","http://opendatacommunities.org/id/metropolitan-district-council/wolverhampton","Alphatec 2000 Limited","","263.43","Equipment - R & M","130117692","06/05/16","ICTS","Document Centre - General","R4003"
"Wolverhampton City Council","http://opendatacommunities.org/id/metropolitan-district-council/wolverhampton","Angel Springs Limited","","23.26","Provisions (Not for resale)","130114848","13/05/16","Parking Services","Car Parks Operational Staff","R4101"
"Wolverhampton City Council","http://opendatacommunities.org/id/metropolitan-district-council/wolverhampton","Angel Springs Limited","","19.44","Provisions (Not for resale)","130114851","13/05/16","Parking Services","Car Parks Operational Staff","R4101"
"Wolverhampton City Council","http://opendatacommunities.org/id/metropolitan-district-council/wolverhampton","Angel Springs Limited","","29.74","Provisions (Not for resale)","130114855","13/05/16","Parking Services","Car Parks Operational Staff","R4101"
"Wolverhampton City Council","http://opendatacommunities.org/id/metropolitan-district-council/wolverhampton","Angel Springs Limited","","29.74","Provisions (Not for resale)","130114858","13/05/16","Parking Services","Car Parks Operational Staff","R4101"
"Wolverhampton City Council","http://opendatacommunities.org/id/metropolitan-district-council/wolverhampton","Angel Springs Limited","","29.16","Provisions (Not for resale)","130116066","13/05/16","Parking Services","Car Parks Operational Staff","R4101"
"Wolverhampton City Council","http://opendatacommunities.org/id/metropolitan-district-council/wolverhampton","Angel Springs Limited","","19.44","Provisions (Not for resale)","130114857","13/05/16","Parking Services","Car Parks Operational Staff","R4101"
"Wolverhampton City Council","http://opendatacommunities.org/id/metropolitan-district-council/wolverhampton","Angel Springs Limited","","9.72","Catering","130114393","13/05/16","School Planning & Resources","Education Data Services","R4100"
"Wolverhampton City Council","http://opendatacommunities.org/id/metropolitan-district-council/wolverhampton","Angel Springs Limited","","38.88","Provisions (Not for resale)","130114846","11/05/16","Parking Services","Car Parks Operational Staff","R4101"
"Wolverhampton City Council","http://opendatacommunities.org/id/metropolitan-district-council/wolverhampton","Angel Springs Limited","","16.78","Provisions (Not for resale)","130114849","11/05/16","Parking Services","Shopmobility","R4101"
"Wolverhampton City Council","http://opendatacommunities.org/id/metropolitan-district-council/wolverhampton","Angel Springs Limited","","19.44","Provisions (Not for resale)","130117643","04/05/16","Fleet Services","Passenger Transport - General","R4101"
"Wolverhampton City Council","http://opendatacommunities.org/id/metropolitan-district-council/wolverhampton","Angel Springs Limited","","15.64","R&M - Departmental planned (external)","130115781","18/05/16","Engineering & Civic Centre","Victoria Square, Block 11","R2001"
"Wolverhampton City Council","http://opendatacommunities.org/id/metropolitan-district-council/wolverhampton","Angel Springs Limited","","15.64","R&M - Departmental planned (external)","130115779","18/05/16","Engineering & Civic Centre","Victoria Square, Block 11","R2001"
"Wolverhampton City Council","http://opendatacommunities.org/id/metropolitan-district-council/wolverhampton","Angel Springs Limited","","16.78","Provisions (Not for resale)","130120694","25/05/16","Housing Revenue Account - Communities","Carelink","R4101"
"Wolverhampton City Council","http://opendatacommunities.org/id/metropolitan-district-council/wolverhampton","Angel Springs Limited","","19.44","Provisions (Not for resale)","130120693","25/05/16","Parking Services","Car Parks Operational Staff","R4101"
"Wolverhampton City Council","http://opendatacommunities.org/id/metropolitan-district-council/wolverhampton","Animalmania","","185.00","Services - Professional Fees","130121847","25/05/16","Schools","Grove Primary School","R4400"
"Wolverhampton City Council","http://opendatacommunities.org/id/metropolitan-district-council/wolverhampton","Apetito Limited","","1,165.18","Provisions (Resale)","130117703","13/05/16","Catering","Meals on Wheels","R4102"
"Wolverhampton City Council","http://opendatacommunities.org/id/metropolitan-district-council/wolverhampton","Apetito Limited","","1,345.36","Provisions (Resale)","130118021","13/05/16","Catering","Meals on Wheels","R4102"
"Wolverhampton City Council","http://opendatacommunities.org/id/metropolitan-district-council/wolverhampton","Apetito Limited","","1,170.12","Provisions (Resale)","130118796","20/05/16","Catering","Meals on Wheels","R4102"
"Wolverhampton City Council","http://opendatacommunities.org/id/metropolitan-district-council/wolverhampton","Apetito Limited","","986.94","Provisions (Resale)","130118207","20/05/16","Catering","Meals on Wheels","R4102"
"Wolverhampton City Council","http://opendatacommunities.org/id/metropolitan-district-council/wolverhampton","Apetito Limited","","1,335.09","Provisions (Resale)","130117154","06/05/16","Catering","Meals on Wheels","R4102"
"Wolverhampton City Council","http://opendatacommunities.org/id/metropolitan-district-council/wolverhampton","Apetito Limited","","1,094.22","Provisions (Resale)","130116508","06/05/16","Catering","Meals on Wheels","R4102"
"Wolverhampton City Council","http://opendatacommunities.org/id/metropolitan-district-council/wolverhampton","Apetito Limited","","1,143.27","Provisions (Resale)","130115394","04/05/16","Catering","Meals on Wheels","R4102"
"Wolverhampton City Council","http://opendatacommunities.org/id/metropolitan-district-council/wolverhampton","Apetito Limited","","1,331.64","Provisions (Resale)","130121403","25/05/16","Catering","Meals on Wheels","R4102"
"Wolverhampton City Council","http://opendatacommunities.org/id/metropolitan-district-council/wolverhampton","Arboricultural Association","","289.72","Subscriptions","130120433","27/05/16","Environmental Maintenance","Arbor Scheme","R4701"
"Wolverhampton City Council","http://opendatacommunities.org/id/metropolitan-district-council/wolverhampton","Archive Servs Data&Records Mngt Limited","","70.44","Storage","130115470","13/05/16","Looked After Children","Head of Service - LAC","R4910"
"Wolverhampton City Council","http://opendatacommunities.org/id/metropolitan-district-council/wolverhampton","Arjohuntleigh UK","","252.00","Equipment - Purchase","130117865","13/05/16","Learning Disability Provider","Learning Disabilities Management","R4000"
"Wolverhampton City Council","http://opendatacommunities.org/id/metropolitan-district-council/wolverhampton","Arjohuntleigh UK","","252.00","Equipment - Purchase","130119102","20/05/16","Learning Disability Provider","Learning Disabilities Management","R4000"
"Wolverhampton City Council","http://opendatacommunities.org/id/metropolitan-district-council/wolverhampton","Arnold Clark Finance Limited","","117.60","Hire of Vehicles","190233281","20/05/16","Fleet Services","Fleet Management","R3200"
"Wolverhampton City Council","http://opendatacommunities.org/id/metropolitan-district-council/wolverhampton","Arnold Clark Finance Limited","","117.60","Hire of Vehicles","190233280","20/05/16","Fleet Services","Fleet Management","R3200"
"Wolverhampton City Council","http://opendatacommunities.org/id/metropolitan-district-council/wolverhampton","Arnold Clark Finance Limited","","117.60","Hire of Vehicles","190233282","20/05/16","Fleet Services","Fleet Management","R3200"
"Wolverhampton City Council","http://opendatacommunities.org/id/metropolitan-district-council/wolverhampton","Arnold Clark Finance Limited","","117.60","Hire of Vehicles","190233279","20/05/16","Fleet Services","Fleet Management","R3200"
"Wolverhampton City Council","http://opendatacommunities.org/id/metropolitan-district-council/wolverhampton","Arnold Clark Finance Limited","","117.60","Hire of Vehicles","190233277","20/05/16","Fleet Services","Fleet Management","R3200"
"Wolverhampton City Council","http://opendatacommunities.org/id/metropolitan-district-council/wolverhampton","Arnold Clark Finance Limited","","117.60","Hire of Vehicles","190233278","20/05/16","Fleet Services","Fleet Management","R3200"
"Wolverhampton City Council","http://opendatacommunities.org/id/metropolitan-district-council/wolverhampton","Arnold Clark Finance Limited","","147.00","Hire of Vehicles","190233252","20/05/16","Fleet Services","Fleet Management","R3200"
"Wolverhampton City Council","http://opendatacommunities.org/id/metropolitan-district-council/wolverhampton","Arnold Clark Finance Limited","","147.00","Hire of Vehicles","190233254","20/05/16","Fleet Services","Fleet Management","R3200"
"Wolverhampton City Council","http://opendatacommunities.org/id/metropolitan-district-council/wolverhampton","Arnold Clark Finance Limited","","147.00","Hire of Vehicles","190233255","20/05/16","Fleet Services","Fleet Management","R3200"
"Wolverhampton City Council","http://opendatacommunities.org/id/metropolitan-district-council/wolverhampton","Arnold Clark Finance Limited","","147.00","Hire of Vehicles","190233253","20/05/16","Fleet Services","Fleet Management","R3200"
"Wolverhampton City Council","http://opendatacommunities.org/id/metropolitan-district-council/wolverhampton","Arnold Clark Finance Limited","","147.00","Hire of Vehicles","190233256","20/05/16","Fleet Services","Fleet Management","R3200"
"Wolverhampton City Council","http://opendatacommunities.org/id/metropolitan-district-council/wolverhampton","Arnold Clark Finance Limited","","147.00","Hire of Vehicles","190233257","20/05/16","Fleet Services","Fleet Management","R3200"
"Wolverhampton City Council","http://opendatacommunities.org/id/metropolitan-district-council/wolverhampton","Arnold Clark Finance Limited","","12.50","Hire of Vehicles","190233251","20/05/16","Fleet Services","Fleet Management","R3200"
"Wolverhampton City Council","http://opendatacommunities.org/id/metropolitan-district-council/wolverhampton","Arnold Clark Finance Limited","","12.50","Hire of Vehicles","190233258","20/05/16","Fleet Services","Fleet Management","R3200"
"Wolverhampton City Council","http://opendatacommunities.org/id/metropolitan-district-council/wolverhampton","Arnold Clark Finance Limited","","147.00","Hire of Vehicles","190233259","20/05/16","Fleet Services","Fleet Management","R3200"
"Wolverhampton City Council","http://opendatacommunities.org/id/metropolitan-district-council/wolverhampton","Arnold Clark Finance Limited","","147.00","Hire of Vehicles","190233260","20/05/16","Fleet Services","Fleet Management","R3200"
"Wolverhampton City Council","http://opendatacommunities.org/id/metropolitan-district-council/wolverhampton","Arnold Clark Finance Limited","","147.00","Hire of Vehicles","190233272","20/05/16","Fleet Services","Fleet Management","R3200"
"Wolverhampton City Council","http://opendatacommunities.org/id/metropolitan-district-council/wolverhampton","Arnold Clark Finance Limited","","147.00","Hire of Vehicles","190233274","20/05/16","Fleet Services","Fleet Management","R3200"
"Wolverhampton City Council","http://opendatacommunities.org/id/metropolitan-district-council/wolverhampton","Arnold Clark Finance Limited","","147.00","Hire of Vehicles","190233275","20/05/16","Fleet Services","Fleet Management","R3200"
"Wolverhampton City Council","http://opendatacommunities.org/id/metropolitan-district-council/wolverhampton","Arnold Clark Finance Limited","","147.00","Hire of Vehicles","190233273","20/05/16","Fleet Services","Fleet Management","R3200"
"Wolverhampton City Council","http://opendatacommunities.org/id/metropolitan-district-council/wolverhampton","Arnold Clark Finance Limited","","147.00","Hire of Vehicles","190233276","20/05/16","Fleet Services","Fleet Management","R3200"
"Wolverhampton City Council","http://opendatacommunities.org/id/metropolitan-district-council/wolverhampton","Arnold Clark Finance Limited","","147.00","Hire of Vehicles","190233267","20/05/16","Fleet Services","Fleet Management","R3200"
"Wolverhampton City Council","http://opendatacommunities.org/id/metropolitan-district-council/wolverhampton","Arnold Clark Finance Limited","","147.00","Hire of Vehicles","190233265","20/05/16","Fleet Services","Fleet Management","R3200"
"Wolverhampton City Council","http://opendatacommunities.org/id/metropolitan-district-council/wolverhampton","Arnold Clark Finance Limited","","147.00","Hire of Vehicles","190233268","20/05/16","Fleet Services","Fleet Management","R3200"
"Wolverhampton City Council","http://opendatacommunities.org/id/metropolitan-district-council/wolverhampton","Arnold Clark Finance Limited","","147.00","Hire of Vehicles","190233271","20/05/16","Fleet Services","Fleet Management","R3200"
"Wolverhampton City Council","http://opendatacommunities.org/id/metropolitan-district-council/wolverhampton","Arnold Clark Finance Limited","","147.00","Hire of Vehicles","190233269","20/05/16","Fleet Services","Fleet Management","R3200"
"Wolverhampton City Council","http://opendatacommunities.org/id/metropolitan-district-council/wolverhampton","Arnold Clark Finance Limited","","147.00","Hire of Vehicles","190233270","20/05/16","Fleet Services","Fleet Management","R3200"
"Wolverhampton City Council","http://opendatacommunities.org/id/metropolitan-district-council/wolverhampton","Arnold Clark Finance Limited","","147.00","Hire of Vehicles","190233264","20/05/16","Fleet Services","Fleet Management","R3200"
"Wolverhampton City Council","http://opendatacommunities.org/id/metropolitan-district-council/wolverhampton","Arnold Clark Finance Limited","","147.00","Hire of Vehicles","190233266","20/05/16","Fleet Services","Fleet Management","R3200"
"Wolverhampton City Council","http://opendatacommunities.org/id/metropolitan-district-council/wolverhampton","Arnold Clark Finance Limited","","147.00","Hire of Vehicles","190233262","20/05/16","Fleet Services","Fleet Management","R3200"
"Wolverhampton City Council","http://opendatacommunities.org/id/metropolitan-district-council/wolverhampton","Arnold Clark Finance Limited","","147.00","Hire of Vehicles","190233263","20/05/16","Fleet Services","Fleet Management","R3200"
"Wolverhampton City Council","http://opendatacommunities.org/id/metropolitan-district-council/wolverhampton","Arnold Clark Finance Limited","","147.00","Hire of Vehicles","190233261","20/05/16","Fleet Services","Fleet Management","R3200"
"Wolverhampton City Council","http://opendatacommunities.org/id/metropolitan-district-council/wolverhampton","Arnold Laver And Co Limited","","1,806.00","Adaptations","130120825","25/05/16","Independent Living Service","Independent Living Service","R4411"
"Wolverhampton City Council","http://opendatacommunities.org/id/metropolitan-district-council/wolverhampton","Arthur Brett (Catering) Limited","","111.27","Provisions (Resale)","130119616","13/05/16","Culture Arts & Heritage","Art Gallery Tea Room","R4102"
"Wolverhampton City Council","http://opendatacommunities.org/id/metropolitan-district-council/wolverhampton","Arthur Brett (Catering) Limited","","110.19","Provisions (Resale)","130119410","13/05/16","Culture Arts & Heritage","Bantock - Tea Rooms","R4102"
"Wolverhampton City Council","http://opendatacommunities.org/id/metropolitan-district-council/wolverhampton","Arthur Brett (Catering) Limited","","17.38","Provisions (Resale)","130119613","13/05/16","Learning Disability Provider","Duke Street Bungalows","R4102"
"Wolverhampton City Council","http://opendatacommunities.org/id/metropolitan-district-council/wolverhampton","Arthur Brett (Catering) Limited","","30.65","Provisions (Resale)","130119150","13/05/16","Learning Disability Provider","Duke Street Bungalows","R4102"
"Wolverhampton City Council","http://opendatacommunities.org/id/metropolitan-district-council/wolverhampton","Arthur Brett (Catering) Limited","","115.98","Provisions (Resale)","130120119","13/05/16","Culture Arts & Heritage","Bantock - Tea Rooms","R4102"
"Wolverhampton City Council","http://opendatacommunities.org/id/metropolitan-district-council/wolverhampton","Arthur Brett (Catering) Limited","","118.77","Provisions (Resale)","130118618","06/05/16","Culture Arts & Heritage","Bantock - Tea Rooms","R4102"
"Wolverhampton City Council","http://opendatacommunities.org/id/metropolitan-district-council/wolverhampton","Arthur Brett (Catering) Limited","","30.30","Provisions (Resale)","130118617","06/05/16","Older People Provider Services","Blakenhall Resource Centre","R4102"
"Wolverhampton City Council","http://opendatacommunities.org/id/metropolitan-district-council/wolverhampton","Arthur Brett (Catering) Limited","","290.84","Provisions (Resale)","130118929","11/05/16","Catering","Bert Williams Leisure Centre Caf�","R4102"
"Wolverhampton City Council","http://opendatacommunities.org/id/metropolitan-district-council/wolverhampton","Arthur Brett (Catering) Limited","","31,935.24","Provisions (Resale)","130118930","11/05/16","Catering","Education Catering - General Overheads","R4102"
"Wolverhampton City Council","http://opendatacommunities.org/id/metropolitan-district-council/wolverhampton","Arthur Brett (Catering) Limited","","1,296.29","Provisions (Resale)","130118927","11/05/16","Catering","Civic Centre Catering","R4102"
"Wolverhampton City Council","http://opendatacommunities.org/id/metropolitan-district-council/wolverhampton","Arthur Brett (Catering) Limited","","26.73","Provisions (Resale)","130118241","11/05/16","Leisure Services","WV Active Catering","R4102"
"Wolverhampton City Council","http://opendatacommunities.org/id/metropolitan-district-council/wolverhampton","Arthur Brett (Catering) Limited","","5.12","Provisions (Resale)","130119149","11/05/16","Learning Disability Provider","Duke Street Bungalows","R4102"
"Wolverhampton City Council","http://opendatacommunities.org/id/metropolitan-district-council/wolverhampton","Arthur Brett (Catering) Limited","","29.11","Provisions (Resale)","130119151","11/05/16","Learning Disability Provider","Duke Street Bungalows","R4102"
"Wolverhampton City Council","http://opendatacommunities.org/id/metropolitan-district-council/wolverhampton","Arthur Brett (Catering) Limited","","122.15","Provisions (Resale)","130119152","11/05/16","Culture Arts & Heritage","Art Gallery Tea Room","R4102"
"Wolverhampton City Council","http://opendatacommunities.org/id/metropolitan-district-council/wolverhampton","Arthur Brett (Catering) Limited","","161.41","Provisions (Resale)","130119153","11/05/16","Culture Arts & Heritage","Bantock - Tea Rooms","R4102"
"Wolverhampton City Council","http://opendatacommunities.org/id/metropolitan-district-council/wolverhampton","Arthur Brett (Catering) Limited","","186.19","Provisions (Resale)","130118418","04/05/16","Culture Arts & Heritage","Bantock - Tea Rooms","R4102"
"Wolverhampton City Council","http://opendatacommunities.org/id/metropolitan-district-council/wolverhampton","Arthur Brett (Catering) Limited","","120.61","Provisions (Resale)","130118419","04/05/16","Culture Arts & Heritage","Art Gallery Tea Room","R4102"
"Wolverhampton City Council","http://opendatacommunities.org/id/metropolitan-district-council/wolverhampton","Arthur Brett (Catering) Limited","","30.82","Provisions (Resale)","130118417","04/05/16","Learning Disability Provider","Duke Street Bungalows","R4102"
"Wolverhampton City Council","http://opendatacommunities.org/id/metropolitan-district-council/wolverhampton","Arthur Brett (Catering) Limited","","18.93","Provisions (Resale)","130118415","04/05/16","Learning Disability Provider","Duke Street Bungalows","R4102"
"Wolverhampton City Council","http://opendatacommunities.org/id/metropolitan-district-council/wolverhampton","Arthur Brett (Catering) Limited","","4.62","Provisions (Resale)","130118416","04/05/16","Learning Disability Provider","Duke Street Bungalows","R4102"
"Wolverhampton City Council","http://opendatacommunities.org/id/metropolitan-district-council/wolverhampton","Arthur Brett (Catering) Limited","","37.90","Provisions (Resale)","130117718","04/05/16","Culture Arts & Heritage","Art Gallery Tea Room","R4102"
"Wolverhampton City Council","http://opendatacommunities.org/id/metropolitan-district-council/wolverhampton","Arthur Brett (Catering) Limited","","87.72","Provisions (Resale)","130117719","04/05/16","Culture Arts & Heritage","Bantock - Tea Rooms","R4102"
"Wolverhampton City Council","http://opendatacommunities.org/id/metropolitan-district-council/wolverhampton","Arthur Brett (Catering) Limited","","18.21","Provisions (Resale)","130117889","04/05/16","Leisure Services","WV Active Catering","R4102"
"Wolverhampton City Council","http://opendatacommunities.org/id/metropolitan-district-council/wolverhampton","Arthur Brett (Catering) Limited","","98.20","Provisions (Resale)","130118035","04/05/16","Culture Arts & Heritage","Art Gallery Tea Room","R4102"
"Wolverhampton City Council","http://opendatacommunities.org/id/metropolitan-district-council/wolverhampton","Arthur Brett (Catering) Limited","","108.18","Provisions (Resale)","130115421","18/05/16","Culture Arts & Heritage","Bantock - Tea Rooms","R4102"
"Wolverhampton City Council","http://opendatacommunities.org/id/metropolitan-district-council/wolverhampton","Arthur Brett (Catering) Limited","","13.19","Provisions (Resale)","130119615","18/05/16","Older People Provider Services","Ekta Day Centre","R4102"
"Wolverhampton City Council","http://opendatacommunities.org/id/metropolitan-district-council/wolverhampton","Arthur Brett (Catering) Limited","","63.61","Provisions (Resale)","130120296","18/05/16","Culture Arts & Heritage","Bantock - Tea Rooms","R4102"
"Wolverhampton City Council","http://opendatacommunities.org/id/metropolitan-district-council/wolverhampton","Arthur Brett (Catering) Limited","","105.13","Provisions (Resale)","130120297","18/05/16","Culture Arts & Heritage","Art Gallery Tea Room","R4102"
"Wolverhampton City Council","http://opendatacommunities.org/id/metropolitan-district-council/wolverhampton","Arthur Brett (Catering) Limited","","19.42","Provisions (Resale)","130120293","18/05/16","Learning Disability Provider","Duke Street Bungalows","R4102"
"Wolverhampton City Council","http://opendatacommunities.org/id/metropolitan-district-council/wolverhampton","Arthur Brett (Catering) Limited","","14.22","Provisions (Resale)","130119614","18/05/16","Learning Disability Provider","Duke Street Bungalows","R4102"
"Wolverhampton City Council","http://opendatacommunities.org/id/metropolitan-district-council/wolverhampton","Arthur Brett (Catering) Limited","","5.02","Provisions (Resale)","130120294","18/05/16","Learning Disability Provider","Duke Street Bungalows","R4102"
"Wolverhampton City Council","http://opendatacommunities.org/id/metropolitan-district-council/wolverhampton","Arthur Brett (Catering) Limited","","26.00","Provisions (Resale)","130120295","18/05/16","Learning Disability Provider","Duke Street Bungalows","R4102"
"Wolverhampton City Council","http://opendatacommunities.org/id/metropolitan-district-council/wolverhampton","Arthur Brett (Catering) Limited","","119.20","Provisions (Resale)","130120474","18/05/16","Culture Arts & Heritage","Bantock - Tea Rooms","R4102"
"Wolverhampton City Council","http://opendatacommunities.org/id/metropolitan-district-council/wolverhampton","Arthur Brett (Catering) Limited","","56.97","Provisions (Resale)","130120118","18/05/16","Leisure Services","WV Active Catering","R4102"
"Wolverhampton City Council","http://opendatacommunities.org/id/metropolitan-district-council/wolverhampton","Arthur Brett (Catering) Limited","","43.23","Provisions (Resale)","130118970","18/05/16","Leisure Services","WV Active Catering","R4102"
"Wolverhampton City Council","http://opendatacommunities.org/id/metropolitan-district-council/wolverhampton","Arthur Brett (Catering) Limited","","24.15","Provisions (Resale)","130121039","25/05/16","Culture Arts & Heritage","Bantock - Tea Rooms","R4102"
"Wolverhampton City Council","http://opendatacommunities.org/id/metropolitan-district-council/wolverhampton","Arthur Brett (Catering) Limited","","113.90","Provisions (Resale)","130121426","25/05/16","Culture Arts & Heritage","Art Gallery Tea Room","R4102"
"Wolverhampton City Council","http://opendatacommunities.org/id/metropolitan-district-council/wolverhampton","Arthur Brett (Catering) Limited","","145.01","Provisions (Resale)","130121583","25/05/16","Culture Arts & Heritage","Bantock - Tea Rooms","R4102"
"Wolverhampton City Council","http://opendatacommunities.org/id/metropolitan-district-council/wolverhampton","Arthur Brett (Catering) Limited","","403.38","Provisions (Resale)","130119664","25/05/16","Contracts","Children Diet and Physical Activity","R4102"
"Wolverhampton City Council","http://opendatacommunities.org/id/metropolitan-district-council/wolverhampton","Arthur Brett (Catering) Limited","","49.44","Provisions (Resale)","130121835","25/05/16","Older People Provider Services","Nelson Mandela House","R4102"
"Wolverhampton City Council","http://opendatacommunities.org/id/metropolitan-district-council/wolverhampton","Arthur Brett (Catering) Limited","","53.39","Provisions (Resale)","130121837","25/05/16","Older People Provider Services","Nelson Mandela House","R4102"
"Wolverhampton City Council","http://opendatacommunities.org/id/metropolitan-district-council/wolverhampton","Arthur Brett (Catering) Limited","","89.94","Provisions (Resale)","130120803","25/05/16","Culture Arts & Heritage","Art Gallery Tea Room","R4102"
"Wolverhampton City Council","http://opendatacommunities.org/id/metropolitan-district-council/wolverhampton","Arthur Brett (Catering) Limited","","20.13","Provisions (Resale)","130119409","25/05/16","Older People Provider Services","Blakenhall Resource Centre","R4102"
"Wolverhampton City Council","http://opendatacommunities.org/id/metropolitan-district-council/wolverhampton","Arthur Brett (Catering) Limited","","161.96","Provisions (Resale)","130121239","25/05/16","Culture Arts & Heritage","Bantock - Tea Rooms","R4102"
"Wolverhampton City Council","http://opendatacommunities.org/id/metropolitan-district-council/wolverhampton","Arthur Brett (Catering) Limited","","87.75","Provisions (Resale)","130121836","25/05/16","Culture Arts & Heritage","Bantock - Tea Rooms","R4102"
"Wolverhampton City Council","http://opendatacommunities.org/id/metropolitan-district-council/wolverhampton","Arthur Brett (Catering) Limited","","-3.67","Provisions (Resale)","130120787","25/05/16","Culture Arts & Heritage","Art Gallery Tea Room","R4102"
"Wolverhampton City Council","http://opendatacommunities.org/id/metropolitan-district-council/wolverhampton","Arthur Brett (Catering) Limited","","409.84","Provisions (Resale)","130117930","25/05/16","Contracts","Children Diet and Physical Activity","R4102"
"Wolverhampton City Council","http://opendatacommunities.org/id/metropolitan-district-council/wolverhampton","Arthur Brett (Catering) Limited","","31.08","Provisions (Resale)","130120473","25/05/16","Older People Provider Services","Blakenhall Resource Centre","R4102"
"Wolverhampton City Council","http://opendatacommunities.org/id/metropolitan-district-council/wolverhampton","Arthur Brett (Catering) Limited","","193.40","Provisions (Resale)","130118928","27/05/16","Catering","Meals on Wheels","R4102"
"Wolverhampton City Council","http://opendatacommunities.org/id/metropolitan-district-council/wolverhampton","Arthur Brett (Catering) Limited","","41.95","Provisions (Resale)","130121238","27/05/16","Leisure Services","WV Active Catering","R4102"
"Wolverhampton City Council","http://opendatacommunities.org/id/metropolitan-district-council/wolverhampton","Arthur Brett (Catering) Limited","","23.04","Provisions (Resale)","130121425","27/05/16","Learning Disability Provider","Duke Street Bungalows","R4102"
"Wolverhampton City Council","http://opendatacommunities.org/id/metropolitan-district-council/wolverhampton","Arthur Brett (Catering) Limited","","25.46","Provisions (Resale)","130121424","27/05/16","Learning Disability Provider","Duke Street Bungalows","R4102"
"Wolverhampton City Council","http://opendatacommunities.org/id/metropolitan-district-council/wolverhampton","Arthur Brett (Catering) Limited","","8.72","Provisions (Resale)","130121423","27/05/16","Learning Disability Provider","Duke Street Bungalows","R4102"
"Wolverhampton City Council","http://opendatacommunities.org/id/metropolitan-district-council/wolverhampton","Arthur Brett (Catering) Limited","","10.00","Provisions (Resale)","130120802","27/05/16","Learning Disability Provider","Duke Street Bungalows","R4102"
"Wolverhampton City Council","http://opendatacommunities.org/id/metropolitan-district-council/wolverhampton","Arthur Brett (Catering) Limited","","10.89","Provisions (Resale)","130120801","27/05/16","Learning Disability Provider","Duke Street Bungalows","R4102"
"Wolverhampton City Council","http://opendatacommunities.org/id/metropolitan-district-council/wolverhampton","Arthur M Griffiths & Son Limited","","118,498.94","Construction and Conversion","130121043","20/05/16","","Primary Expansion Programme","C1100"
"Wolverhampton City Council","http://opendatacommunities.org/id/metropolitan-district-council/wolverhampton","Arthur M Griffiths & Son Limited","","100,462.14","Construction and Conversion","130119891","11/05/16","","Primary Expansion Programme","C1100"
"Wolverhampton City Council","http://opendatacommunities.org/id/metropolitan-district-council/wolverhampton","Asan Management Services Limited","","108.00","Room Hire","130119242","13/05/16","Transformation","Workforce Development","R2201"
"Wolverhampton City Council","http://opendatacommunities.org/id/metropolitan-district-council/wolverhampton","Asan Management Services Limited","","90.00","Catering","130119242","13/05/16","Transformation","Workforce Development","R4100"
"Wolverhampton City Council","http://opendatacommunities.org/id/metropolitan-district-council/wolverhampton","Asdan Limited","","355.00","Training Expenses","130119747","13/05/16","Youth Offending","Bilston Junior Attendance Centre","R1650"
"Wolverhampton City Council","http://opendatacommunities.org/id/metropolitan-district-council/wolverhampton","Asdan Limited","","2,611.65","Training Expenses","130119053","11/05/16","Youth Offending","Bilston Junior Attendance Centre","R1650"
"Wolverhampton City Council","http://opendatacommunities.org/id/metropolitan-district-council/wolverhampton","Asdan Limited","","-2,611.65","Training Expenses","130119053","11/05/16","Youth Offending","Bilston Junior Attendance Centre","R1650"
"Wolverhampton City Council","http://opendatacommunities.org/id/metropolitan-district-council/wolverhampton","Asdan Limited","","2,501.65","Training Expenses","130119053","11/05/16","Youth Offending","Bilston Junior Attendance Centre","R1650"
"Wolverhampton City Council","http://opendatacommunities.org/id/metropolitan-district-council/wolverhampton","Asdan Limited","","110.00","Training Expenses","130119053","11/05/16","Youth Offending","Bilston Junior Attendance Centre","R1650"
"Wolverhampton City Council","http://opendatacommunities.org/id/metropolitan-district-council/wolverhampton","Asdan Limited","","279.50","Training Expenses","130119746","25/05/16","Youth Offending","Bilston Junior Attendance Centre","R1650"
"Wolverhampton City Council","http://opendatacommunities.org/id/metropolitan-district-council/wolverhampton","Asdan Limited","","-279.50","Training Expenses","130119746","25/05/16","Youth Offending","Bilston Junior Attendance Centre","R1650"
"Wolverhampton City Council","http://opendatacommunities.org/id/metropolitan-district-council/wolverhampton","Asdan Limited","","279.50","Training Expenses","130119746","25/05/16","Youth Offending","Bilston Junior Attendance Centre","R1650"
"Wolverhampton City Council","http://opendatacommunities.org/id/metropolitan-district-council/wolverhampton","Ashdown Supplies","","333.60","Materials","130119255","18/05/16","Bereavement Services","Cemeteries","R4007"
"Wolverhampton City Council","http://opendatacommunities.org/id/metropolitan-district-council/wolverhampton","Ashdown Supplies","","120.50","Materials","130121733","25/05/16","Bereavement Services","Cemeteries","R4007"
"Wolverhampton City Council","http://opendatacommunities.org/id/metropolitan-district-council/wolverhampton","Ashtead Plant Hire Company Limited","","117.07","Equipment - Hire","130119547","25/05/16","Visitor Economy","Vaisakhi","R4001"
"Wolverhampton City Council","http://opendatacommunities.org/id/metropolitan-district-council/wolverhampton","Ashton Engineering Co. Limited","","452.98","Equipment - R & M","190229911","11/05/16","Fleet Services","Fleet Management","R4003"
"Wolverhampton City Council","http://opendatacommunities.org/id/metropolitan-district-council/wolverhampton","Ashton Engineering Co. Limited","","138.50","Equipment - R & M","190229915","11/05/16","Fleet Services","Fleet Management","R4003"
"Wolverhampton City Council","http://opendatacommunities.org/id/metropolitan-district-council/wolverhampton","Ashton Engineering Co. Limited","","214.20","Equipment - R & M","190229914","11/05/16","Fleet Services","Fleet Management","R4003"
"Wolverhampton City Council","http://opendatacommunities.org/id/metropolitan-district-council/wolverhampton","Ashton Engineering Co. Limited","","30.00","Equipment - R & M","190229913","11/05/16","Fleet Services","Fleet Management","R4003"
"Wolverhampton City Council","http://opendatacommunities.org/id/metropolitan-district-council/wolverhampton","Ashton Engineering Co. Limited","","30.00","Equipment - R & M","190229913","11/05/16","Fleet Services","Fleet Management","R4003"
"Wolverhampton City Council","http://opendatacommunities.org/id/metropolitan-district-council/wolverhampton","Ashton Engineering Co. Limited","","84.04","Equipment - R & M","190229912","11/05/16","Fleet Services","Fleet Management","R4003"
"Wolverhampton City Council","http://opendatacommunities.org/id/metropolitan-district-council/wolverhampton","Askews & Holts Library Services Limited","","4.83","Books","130117986","13/05/16","Library Services","Global Budgets","R4309"
"Wolverhampton City Council","http://opendatacommunities.org/id/metropolitan-district-council/wolverhampton","Askews & Holts Library Services Limited","","429.73","Books","130117987","13/05/16","Library Services","Global Budgets","R4309"
"Wolverhampton City Council","http://opendatacommunities.org/id/metropolitan-district-council/wolverhampton","Askews & Holts Library Services Limited","","308.21","Books","130117991","13/05/16","Library Services","Global Budgets","R4309"
"Wolverhampton City Council","http://opendatacommunities.org/id/metropolitan-district-council/wolverhampton","Askews & Holts Library Services Limited","","360.36","Books","130117989","13/05/16","Library Services","Global Budgets","R4309"
"Wolverhampton City Council","http://opendatacommunities.org/id/metropolitan-district-council/wolverhampton","Askews & Holts Library Services Limited","","490.62","Books","130117988","13/05/16","Library Services","Global Budgets","R4309"
"Wolverhampton City Council","http://opendatacommunities.org/id/metropolitan-district-council/wolverhampton","Askews & Holts Library Services Limited","","441.46","Books","130117990","13/05/16","Library Services","Global Budgets","R4309"
"Wolverhampton City Council","http://opendatacommunities.org/id/metropolitan-district-council/wolverhampton","Askews & Holts Library Services Limited","","326.17","Books","130118186","20/05/16","Library Services","Global Budgets","R4309"
"Wolverhampton City Council","http://opendatacommunities.org/id/metropolitan-district-council/wolverhampton","Askews & Holts Library Services Limited","","2,790.00","Books","130118132","20/05/16","Library Services","Global Budgets","R4309"
"Wolverhampton City Council","http://opendatacommunities.org/id/metropolitan-district-council/wolverhampton","Askews & Holts Library Services Limited","","70.28","Books","130119312","20/05/16","Library Services","Global Budgets","R4309"
"Wolverhampton City Council","http://opendatacommunities.org/id/metropolitan-district-council/wolverhampton","Askews & Holts Library Services Limited","","859.04","Books","130119313","20/05/16","Library Services","Global Budgets","R4309"
"Wolverhampton City Council","http://opendatacommunities.org/id/metropolitan-district-council/wolverhampton","Askews & Holts Library Services Limited","","33.33","Books","130116441","06/05/16","Library Services","Global Budgets","R4309"
"Wolverhampton City Council","http://opendatacommunities.org/id/metropolitan-district-council/wolverhampton","Askews & Holts Library Services Limited","","45.36","Books","130117334","06/05/16","Library Services","Global Budgets","R4309"
"Wolverhampton City Council","http://opendatacommunities.org/id/metropolitan-district-council/wolverhampton","Askews & Holts Library Services Limited","","14.49","Books","130116995","06/05/16","Library Services","Global Budgets","R4309"
"Wolverhampton City Council","http://opendatacommunities.org/id/metropolitan-district-council/wolverhampton","Askews & Holts Library Services Limited","","17.16","Books","130116310","06/05/16","Library Services","Global Budgets","R4309"
"Wolverhampton City Council","http://opendatacommunities.org/id/metropolitan-district-council/wolverhampton","Askews & Holts Library Services Limited","","14.36","Books","130116110","04/05/16","Library Services","Global Budgets","R4309"
"Wolverhampton City Council","http://opendatacommunities.org/id/metropolitan-district-council/wolverhampton","Askews & Holts Library Services Limited","","68.33","Books","130120022","27/05/16","Library Services","Global Budgets","R4309"
"Wolverhampton City Council","http://opendatacommunities.org/id/metropolitan-district-council/wolverhampton","Askews & Holts Library Services Limited","","4.83","Books","130119314","27/05/16","Library Services","Global Budgets","R4309"
"Wolverhampton City Council","http://opendatacommunities.org/id/metropolitan-district-council/wolverhampton","Askews & Holts Library Services Limited","","519.73","Books","130119315","27/05/16","Library Services","Global Budgets","R4309"
"Wolverhampton City Council","http://opendatacommunities.org/id/metropolitan-district-council/wolverhampton","Askews & Holts Library Services Limited","","454.43","Books","130119316","27/05/16","Library Services","Global Budgets","R4309"
"Wolverhampton City Council","http://opendatacommunities.org/id/metropolitan-district-council/wolverhampton","Askews & Holts Library Services Limited","","104.79","Books","130119317","27/05/16","Library Services","Global Budgets","R4309"
"Wolverhampton City Council","http://opendatacommunities.org/id/metropolitan-district-council/wolverhampton","Askews & Holts Library Services Limited","","615.84","Books","130119319","27/05/16","Library Services","Global Budgets","R4309"
"Wolverhampton City Council","http://opendatacommunities.org/id/metropolitan-district-council/wolverhampton","Askews & Holts Library Services Limited","","106.93","Books","130119775","27/05/16","Library Services","Global Budgets","R4309"
"Wolverhampton City Council","http://opendatacommunities.org/id/metropolitan-district-council/wolverhampton","Askews & Holts Library Services Limited","","34.68","Books","130119318","27/05/16","Library Services","Global Budgets","R4309"
"Wolverhampton City Council","http://opendatacommunities.org/id/metropolitan-district-council/wolverhampton","Assoc Directors Adult Soc Serv-Adass","","1,800.00","Conference Expenses","130115802","04/05/16","Transformation","Member Training","R4611"
"Wolverhampton City Council","http://opendatacommunities.org/id/metropolitan-district-council/wolverhampton","Assoc Directors Adult Soc Serv-Adass","","-1,800.00","Conference Expenses","130115802","04/05/16","Transformation","Member Training","R4611"
"Wolverhampton City Council","http://opendatacommunities.org/id/metropolitan-district-council/wolverhampton","Assoc Directors Adult Soc Serv-Adass","","1,800.00","Conference Expenses","130115802","04/05/16","Transformation","Member Training","R4611"
"Wolverhampton City Council","http://opendatacommunities.org/id/metropolitan-district-council/wolverhampton","Associated  Radio Taxi�s","","888.90","Client Transport","130121008","20/05/16","School Planning & Resources","Primary - Transport","R3042"
"Wolverhampton City Council","http://opendatacommunities.org/id/metropolitan-district-council/wolverhampton","Associated  Radio Taxi�s","","-888.90","Client Transport","130121008","20/05/16","School Planning & Resources","Primary - Transport","R3042"
"Wolverhampton City Council","http://opendatacommunities.org/id/metropolitan-district-council/wolverhampton","Associated  Radio Taxi�s","","888.90","Client Transport","130121008","20/05/16","School Planning & Resources","Primary - Transport","R3042"
"Wolverhampton City Council","http://opendatacommunities.org/id/metropolitan-district-council/wolverhampton","Associated  Radio Taxi�s","","884.16","Client Transport","130121007","20/05/16","School Planning & Resources","Secondary- Transport","R3042"
"Wolverhampton City Council","http://opendatacommunities.org/id/metropolitan-district-council/wolverhampton","Associated  Radio Taxi�s","","-884.16","Client Transport","130121007","20/05/16","School Planning & Resources","Secondary- Transport","R3042"
"Wolverhampton City Council","http://opendatacommunities.org/id/metropolitan-district-council/wolverhampton","Associated  Radio Taxi�s","","884.16","Client Transport","130121007","20/05/16","School Planning & Resources","Secondary- Transport","R3042"
"Wolverhampton City Council","http://opendatacommunities.org/id/metropolitan-district-council/wolverhampton","Associated  Radio Taxi�s","","910.56","Client Transport","130121009","20/05/16","School Planning & Resources","Secondary- Transport","R3042"
"Wolverhampton City Council","http://opendatacommunities.org/id/metropolitan-district-council/wolverhampton","Associated  Radio Taxi�s","","-910.56","Client Transport","130121009","20/05/16","School Planning & Resources","Secondary- Transport","R3042"
"Wolverhampton City Council","http://opendatacommunities.org/id/metropolitan-district-council/wolverhampton","Associated  Radio Taxi�s","","910.56","Client Transport","130121009","20/05/16","School Planning & Resources","Secondary- Transport","R3042"
"Wolverhampton City Council","http://opendatacommunities.org/id/metropolitan-district-council/wolverhampton","Associated  Radio Taxi�s","","480.70","Client Transport","130120552","20/05/16","Children With Disabilities","Childrens with Disabilities Team","R3042"
"Wolverhampton City Council","http://opendatacommunities.org/id/metropolitan-district-council/wolverhampton","Associated  Radio Taxi�s","","-480.70","Client Transport","130120552","20/05/16","Children With Disabilities","Childrens with Disabilities Team","R3042"
"Wolverhampton City Council","http://opendatacommunities.org/id/metropolitan-district-council/wolverhampton","Associated  Radio Taxi�s","","480.70","Client Transport","130120552","20/05/16","Children With Disabilities","Childrens with Disabilities Team","R3042"
"Wolverhampton City Council","http://opendatacommunities.org/id/metropolitan-district-council/wolverhampton","Associated  Radio Taxi�s","","73.40","Client Transport","130116246","20/05/16","Children With Disabilities","Childrens with Disabilities Team","R3042"
"Wolverhampton City Council","http://opendatacommunities.org/id/metropolitan-district-council/wolverhampton","Associated  Radio Taxi�s","","-73.40","Client Transport","130116246","20/05/16","Children With Disabilities","Childrens with Disabilities Team","R3042"
"Wolverhampton City Council","http://opendatacommunities.org/id/metropolitan-district-council/wolverhampton","Associated  Radio Taxi�s","","73.40","Client Transport","130116246","20/05/16","Children With Disabilities","Childrens with Disabilities Team","R3042"
"Wolverhampton City Council","http://opendatacommunities.org/id/metropolitan-district-council/wolverhampton","Associated  Radio Taxi�s","","38.50","Client Transport","130121112","20/05/16","Children With Disabilities","Childrens with Disabilities Team","R3042"
"Wolverhampton City Council","http://opendatacommunities.org/id/metropolitan-district-council/wolverhampton","Associated  Radio Taxi�s","","97.60","Client Transport","130121011","18/05/16","School Planning & Resources","Special - Transport","R3042"
"Wolverhampton City Council","http://opendatacommunities.org/id/metropolitan-district-council/wolverhampton","Associated  Radio Taxi�s","","750.68","Client Transport","130121010","18/05/16","School Planning & Resources","Primary - Transport","R3042"
"Wolverhampton City Council","http://opendatacommunities.org/id/metropolitan-district-council/wolverhampton","Associated  Radio Taxi�s","","994.20","Client Transport","130121015","18/05/16","School Planning & Resources","Primary - Transport","R3042"
"Wolverhampton City Council","http://opendatacommunities.org/id/metropolitan-district-council/wolverhampton","Associated  Radio Taxi�s","","128.10","Client Transport","130119958","18/05/16","Children With Disabilities","Childrens with Disabilities Team","R3042"
"Wolverhampton City Council","http://opendatacommunities.org/id/metropolitan-district-council/wolverhampton","Associated  Radio Taxi�s","","128.10","Client Transport","130119958","18/05/16","Children With Disabilities","Childrens with Disabilities Team","R3042"
"Wolverhampton City Council","http://opendatacommunities.org/id/metropolitan-district-council/wolverhampton","Associated  Radio Taxi�s","","-128.10","Client Transport","130119958","18/05/16","Children With Disabilities","Childrens with Disabilities Team","R3042"
"Wolverhampton City Council","http://opendatacommunities.org/id/metropolitan-district-council/wolverhampton","Associated  Radio Taxi�s","","773.64","Client Transport","130121016","27/05/16","School Planning & Resources","Secondary- Transport","R3042"
"Wolverhampton City Council","http://opendatacommunities.org/id/metropolitan-district-council/wolverhampton","Associated  Radio Taxi�s","","-773.64","Client Transport","130121016","27/05/16","School Planning & Resources","Secondary- Transport","R3042"
"Wolverhampton City Council","http://opendatacommunities.org/id/metropolitan-district-council/wolverhampton","Associated  Radio Taxi�s","","773.64","Client Transport","130121016","27/05/16","School Planning & Resources","Secondary- Transport","R3042"
"Wolverhampton City Council","http://opendatacommunities.org/id/metropolitan-district-council/wolverhampton","Pelican Rouge Coffee Solutions Limited","","50.01","Equipment - Hire","130120201","20/05/16","Democracy","Members Expenses","R4001"
"Wolverhampton City Council","http://opendatacommunities.org/id/metropolitan-district-council/wolverhampton","Axiom Building Solutions","","4,330.00","R&M - Departmental planned (external)","130117942","13/05/16","School Planning & Resources","Other Support Services","R2001"
"Wolverhampton City Council","http://opendatacommunities.org/id/metropolitan-district-council/wolverhampton","Axiom Building Solutions","","14,850.00","R&M - Departmental planned (external)","130117941","13/05/16","School Planning & Resources","Other Support Services","R2001"
"Wolverhampton City Council","http://opendatacommunities.org/id/metropolitan-district-council/wolverhampton","Axiom Building Solutions","","6,550.00","Construction and Conversion","130116022","04/05/16","","Electrical Works","C1100"
"Wolverhampton City Council","http://opendatacommunities.org/id/metropolitan-district-council/wolverhampton","Axiom Building Solutions","","13,650.00","R&M - Departmental planned (external)","130116024","04/05/16","Corporate Asset Management","Statutory Surveys","R2001"
"Wolverhampton City Council","http://opendatacommunities.org/id/metropolitan-district-council/wolverhampton","Axiom Building Solutions","","4,275.00","R&M - Departmental planned (external)","130116023","04/05/16","Corporate Asset Management","Statutory Surveys","R2001"
"Wolverhampton City Council","http://opendatacommunities.org/id/metropolitan-district-council/wolverhampton","Axiom Building Solutions","","4,650.00","Construction and Conversion","130118103","18/05/16","","Primary Expansion Programme","C1100"
"Wolverhampton City Council","http://opendatacommunities.org/id/metropolitan-district-council/wolverhampton","B + G Cleaning Systems Limited","","9.95","Equipment - R & M","190229883","11/05/16","Fleet Services","Fleet Management","R4003"
"Wolverhampton City Council","http://opendatacommunities.org/id/metropolitan-district-council/wolverhampton","B + G Cleaning Systems Limited","","2.94","Equipment - R & M","190229883","11/05/16","Fleet Services","Fleet Management","R4003"
"Wolverhampton City Council","http://opendatacommunities.org/id/metropolitan-district-council/wolverhampton","B + G Cleaning Systems Limited","","23.90","Equipment - R & M","190229883","11/05/16","Fleet Services","Fleet Management","R4003"
"Wolverhampton City Council","http://opendatacommunities.org/id/metropolitan-district-council/wolverhampton","B + G Cleaning Systems Limited","","85.00","Equipment - R & M","190229883","11/05/16","Fleet Services","Fleet Management","R4003"
"Wolverhampton City Council","http://opendatacommunities.org/id/metropolitan-district-council/wolverhampton","B + G Cleaning Systems Limited","","5.95","Equipment - R & M","190229883","11/05/16","Fleet Services","Fleet Management","R4003"
"Wolverhampton City Council","http://opendatacommunities.org/id/metropolitan-district-council/wolverhampton","B + G Cleaning Systems Limited","","17.48","Equipment - R & M","190229883","11/05/16","Fleet Services","Fleet Management","R4003"
"Wolverhampton City Council","http://opendatacommunities.org/id/metropolitan-district-council/wolverhampton","Badenoch & Clark Recruit. Specialist","","-1,381.91","Agency Staff","130118691","13/05/16","Strategic Finance","Strategic Finance","R1100"
"Wolverhampton City Council","http://opendatacommunities.org/id/metropolitan-district-council/wolverhampton","Badenoch & Clark Recruit. Specialist","","3,000.00","Agency Staff","130119089","13/05/16","ICTS","Digital Transformation Programme","R1100"
"Wolverhampton City Council","http://opendatacommunities.org/id/metropolitan-district-council/wolverhampton","Badenoch & Clark Recruit. Specialist","","1,400.00","Agency Staff","130119092","13/05/16","Transformation","Corporate Programmes","R1100"
"Wolverhampton City Council","http://opendatacommunities.org/id/metropolitan-district-council/wolverhampton","Badenoch & Clark Recruit. Specialist","","2,400.00","Agency Staff","130119083","13/05/16","ICTS","Digital Transformation Programme","R1100"
"Wolverhampton City Council","http://opendatacommunities.org/id/metropolitan-district-council/wolverhampton","Badenoch & Clark Recruit. Specialist","","1,647.04","Agency Staff","130120135","13/05/16","Strategic Finance","Strategic Finance","R1100"
"Wolverhampton City Council","http://opendatacommunities.org/id/metropolitan-district-council/wolverhampton","Badenoch & Clark Recruit. Specialist","","2,050.00","Agency Staff","130120535","20/05/16","Strategic Finance","Corporate Procurement Unit","R1100"
"Wolverhampton City Council","http://opendatacommunities.org/id/metropolitan-district-council/wolverhampton","Badenoch & Clark Recruit. Specialist","","3,015.00","Agency Staff","130120728","20/05/16","Strategic Finance","Corporate Procurement Unit","R1100"
"Wolverhampton City Council","http://opendatacommunities.org/id/metropolitan-district-council/wolverhampton","Badenoch & Clark Recruit. Specialist","","1,545.47","Agency Staff","130120536","20/05/16","Strategic Finance","Strategic Finance","R1100"
"Wolverhampton City Council","http://opendatacommunities.org/id/metropolitan-district-council/wolverhampton","Badenoch & Clark Recruit. Specialist","","1,640.00","Agency Staff","130120534","20/05/16","Strategic Finance","Corporate Procurement Unit","R1100"
"Wolverhampton City Council","http://opendatacommunities.org/id/metropolitan-district-council/wolverhampton","Badenoch & Clark Recruit. Specialist","","1,061.78","Agency Staff","130120137","20/05/16","Strategic Finance","Strategic Finance","R1100"
"Wolverhampton City Council","http://opendatacommunities.org/id/metropolitan-district-council/wolverhampton","Badenoch & Clark Recruit. Specialist","","1,462.89","Agency Staff","130120722","20/05/16","Strategic Finance","Strategic Finance","R1100"
"Wolverhampton City Council","http://opendatacommunities.org/id/metropolitan-district-council/wolverhampton","Badenoch & Clark Recruit. Specialist","","14,300.00","Agency Staff","130120725","20/05/16","City Development","City Development  - Core Team","R1100"
"Wolverhampton City Council","http://opendatacommunities.org/id/metropolitan-district-council/wolverhampton","Badenoch & Clark Recruit. Specialist","","2,823.52","Agency Staff","130119082","06/05/16","Service Director City Environment","Service Director City Environment","R1100"
"Wolverhampton City Council","http://opendatacommunities.org/id/metropolitan-district-council/wolverhampton","Badenoch & Clark Recruit. Specialist","","1,750.00","Agency Staff","130118702","11/05/16","ICTS","Digital Transformation Programme","R1100"
"Wolverhampton City Council","http://opendatacommunities.org/id/metropolitan-district-council/wolverhampton","Badenoch & Clark Recruit. Specialist","","2,050.00","Agency Staff","130118700","11/05/16","Strategic Finance","Corporate Procurement Unit","R1100"
"Wolverhampton City Council","http://opendatacommunities.org/id/metropolitan-district-council/wolverhampton","Badenoch & Clark Recruit. Specialist","","2,050.00","Agency Staff","130119091","11/05/16","Strategic Finance","Corporate Procurement Unit","R1100"
"Wolverhampton City Council","http://opendatacommunities.org/id/metropolitan-district-council/wolverhampton","Badenoch & Clark Recruit. Specialist","","1,640.00","Agency Staff","130119081","11/05/16","Strategic Finance","Corporate Procurement Unit","R1100"
"Wolverhampton City Council","http://opendatacommunities.org/id/metropolitan-district-council/wolverhampton","Badenoch & Clark Recruit. Specialist","","2,058.80","Agency Staff","130118695","11/05/16","Strategic Finance","Strategic Finance","R1100"
"Wolverhampton City Council","http://opendatacommunities.org/id/metropolitan-district-council/wolverhampton","Badenoch & Clark Recruit. Specialist","","3,015.00","Agency Staff","130118694","11/05/16","Strategic Finance","Corporate Procurement Unit","R1100"
"Wolverhampton City Council","http://opendatacommunities.org/id/metropolitan-district-council/wolverhampton","Badenoch & Clark Recruit. Specialist","","3,015.00","Agency Staff","130118701","11/05/16","Strategic Finance","Corporate Procurement Unit","R1100"
"Wolverhampton City Council","http://opendatacommunities.org/id/metropolitan-district-council/wolverhampton","Badenoch & Clark Recruit. Specialist","","2,412.00","Agency Staff","130119085","11/05/16","Strategic Finance","Corporate Procurement Unit","R1100"
"Wolverhampton City Council","http://opendatacommunities.org/id/metropolitan-district-council/wolverhampton","Badenoch & Clark Recruit. Specialist","","823.52","Agency Staff","130119078","11/05/16","Strategic Finance","Strategic Finance","R1100"
"Wolverhampton City Council","http://opendatacommunities.org/id/metropolitan-district-council/wolverhampton","Badenoch & Clark Recruit. Specialist","","2,058.80","Agency Staff","130119086","11/05/16","Strategic Finance","Strategic Finance","R1100"
"Wolverhampton City Council","http://opendatacommunities.org/id/metropolitan-district-council/wolverhampton","Badenoch & Clark Recruit. Specialist","","1,029.40","Agency Staff","130119077","11/05/16","Strategic Finance","Strategic Finance","R1100"
"Wolverhampton City Council","http://opendatacommunities.org/id/metropolitan-district-council/wolverhampton","Badenoch & Clark Recruit. Specialist","","1,206.00","Agency Staff","130117668","04/05/16","Strategic Finance","Corporate Procurement Unit","R1100"
"Wolverhampton City Council","http://opendatacommunities.org/id/metropolitan-district-council/wolverhampton","Badenoch & Clark Recruit. Specialist","","1,800.00","Agency Staff","130118698","04/05/16","ICTS","Digital Transformation Programme","R1100"
"Wolverhampton City Council","http://opendatacommunities.org/id/metropolitan-district-council/wolverhampton","Badenoch & Clark Recruit. Specialist","","2,362.50","Agency Staff","130118697","04/05/16","Transformation","Corporate Programmes","R1100"
"Wolverhampton City Council","http://opendatacommunities.org/id/metropolitan-district-council/wolverhampton","Badenoch & Clark Recruit. Specialist","","1,837.50","Agency Staff","130120134","18/05/16","Transformation","Corporate Programmes","R1100"
"Wolverhampton City Council","http://opendatacommunities.org/id/metropolitan-district-council/wolverhampton","Badenoch & Clark Recruit. Specialist","","1,500.00","Agency Staff","130120530","18/05/16","ICTS","Digital Transformation Programme","R1100"
"Wolverhampton City Council","http://opendatacommunities.org/id/metropolitan-district-council/wolverhampton","Badenoch & Clark Recruit. Specialist","","2,100.00","Agency Staff","130119080","18/05/16","Transformation","Corporate Programmes","R1100"
"Wolverhampton City Council","http://opendatacommunities.org/id/metropolitan-district-council/wolverhampton","Badenoch & Clark Recruit. Specialist","","2,625.00","Agency Staff","130119088","18/05/16","Transformation","Corporate Programmes","R1100"
"Wolverhampton City Council","http://opendatacommunities.org/id/metropolitan-district-council/wolverhampton","Badenoch & Clark Recruit. Specialist","","2,412.00","Agency Staff","130120136","18/05/16","Strategic Finance","Corporate Procurement Unit","R1100"
"Wolverhampton City Council","http://opendatacommunities.org/id/metropolitan-district-council/wolverhampton","Badenoch & Clark Recruit. Specialist","","2,058.80","Agency Staff","130120723","18/05/16","Strategic Finance","Strategic Finance","R1100"
"Wolverhampton City Council","http://opendatacommunities.org/id/metropolitan-district-council/wolverhampton","Badenoch & Clark Recruit. Specialist","","1,200.00","Agency Staff","130120531","18/05/16","ICTS","Digital Transformation Programme","R1100"
"Wolverhampton City Council","http://opendatacommunities.org/id/metropolitan-district-council/wolverhampton","Badenoch & Clark Recruit. Specialist","","1,647.04","Agency Staff","130120532","18/05/16","Strategic Finance","Strategic Finance","R1100"
"Wolverhampton City Council","http://opendatacommunities.org/id/metropolitan-district-council/wolverhampton","Badenoch & Clark Recruit. Specialist","","1,381.91","Agency Staff","130117333","18/05/16","Strategic Finance","Strategic Finance","R1100"
"Wolverhampton City Council","http://opendatacommunities.org/id/metropolitan-district-council/wolverhampton","Badenoch & Clark Recruit. Specialist","","3,000.00","Agency Staff","130120726","18/05/16","ICTS","Digital Transformation Programme","R1100"
"Wolverhampton City Council","http://opendatacommunities.org/id/metropolitan-district-council/wolverhampton","Badenoch & Clark Recruit. Specialist","","1,750.00","Agency Staff","130120729","18/05/16","ICTS","Digital Transformation Programme","R1100"
"Wolverhampton City Council","http://opendatacommunities.org/id/metropolitan-district-council/wolverhampton","Badenoch & Clark Recruit. Specialist","","1,392.11","Agency Staff","130118693","18/05/16","Strategic Finance","Strategic Finance","R1100"
"Wolverhampton City Council","http://opendatacommunities.org/id/metropolitan-district-council/wolverhampton","Badenoch & Clark Recruit. Specialist","","2,700.00","Agency Staff","130118696","25/05/16","Service Director Older People","Service Director Older People","R1100"
"Wolverhampton City Council","http://opendatacommunities.org/id/metropolitan-district-council/wolverhampton","Badenoch & Clark Recruit. Specialist","","2,700.00","Agency Staff","130117662","25/05/16","Service Director Older People","Service Director Older People","R1100"
"Wolverhampton City Council","http://opendatacommunities.org/id/metropolitan-district-council/wolverhampton","Badenoch & Clark Recruit. Specialist","","2,700.00","Agency Staff","130111061","25/05/16","Service Director Older People","Service Director Older People","R1100"
"Wolverhampton City Council","http://opendatacommunities.org/id/metropolitan-district-council/wolverhampton","Badenoch & Clark Recruit. Specialist","","2,160.00","Agency Staff","130119079","25/05/16","Service Director Older People","Service Director Older People","R1100"
"Wolverhampton City Council","http://opendatacommunities.org/id/metropolitan-district-council/wolverhampton","Badenoch & Clark Recruit. Specialist","","3,015.00","Agency Staff","130121266","25/05/16","Strategic Finance","Corporate Procurement Unit","R1100"
"Wolverhampton City Council","http://opendatacommunities.org/id/metropolitan-district-council/wolverhampton","Badenoch & Clark Recruit. Specialist","","2,700.00","Agency Staff","130119087","25/05/16","Service Director Older People","Service Director Older People","R1100"
"Wolverhampton City Council","http://opendatacommunities.org/id/metropolitan-district-council/wolverhampton","Badenoch & Clark Recruit. Specialist","","2,100.00","Agency Staff","130121666","25/05/16","Transformation","Corporate Programmes","R1100"
"Wolverhampton City Council","http://opendatacommunities.org/id/metropolitan-district-council/wolverhampton","Badenoch & Clark Recruit. Specialist","","1,557.27","Agency Staff","130121668","27/05/16","Strategic Finance","Strategic Finance","R1100"
"Wolverhampton City Council","http://opendatacommunities.org/id/metropolitan-district-council/wolverhampton","Badenoch & Clark Recruit. Specialist","","1,449.32","Agency Staff","130114552","27/05/16","Strategic Finance","Strategic Finance","R1100"
"Wolverhampton City Council","http://opendatacommunities.org/id/metropolitan-district-council/wolverhampton","Badenoch & Clark Recruit. Specialist","","2,750.00","Agency Staff","130120533","27/05/16","Service Director Disability & Mental Health","Service Director Disability & Mental Health","R1100"
"Wolverhampton City Council","http://opendatacommunities.org/id/metropolitan-district-council/wolverhampton","Badenoch & Clark Recruit. Specialist","","2,750.00","Agency Staff","130120727","27/05/16","Service Director Disability & Mental Health","Service Director Disability & Mental Health","R1100"
"Wolverhampton City Council","http://opendatacommunities.org/id/metropolitan-district-council/wolverhampton","Badenoch & Clark Recruit. Specialist","","2,200.00","Agency Staff","130117667","27/05/16","Service Director Disability & Mental Health","Service Director Disability & Mental Health","R1100"
"Wolverhampton City Council","http://opendatacommunities.org/id/metropolitan-district-council/wolverhampton","Badenoch & Clark Recruit. Specialist","","2,750.00","Agency Staff","130118699","27/05/16","Service Director Disability & Mental Health","Service Director Disability & Mental Health","R1100"
"Wolverhampton City Council","http://opendatacommunities.org/id/metropolitan-district-council/wolverhampton","Badenoch & Clark Recruit. Specialist","","2,200.00","Agency Staff","130119084","27/05/16","Service Director Disability & Mental Health","Service Director Disability & Mental Health","R1100"
"Wolverhampton City Council","http://opendatacommunities.org/id/metropolitan-district-council/wolverhampton","Badenoch & Clark Recruit. Specialist","","2,200.00","Agency Staff","130120138","27/05/16","Service Director Disability & Mental Health","Service Director Disability & Mental Health","R1100"
"Wolverhampton City Council","http://opendatacommunities.org/id/metropolitan-district-council/wolverhampton","Badenoch & Clark Recruit. Specialist","","2,200.00","Agency Staff","130119090","27/05/16","Service Director Disability & Mental Health","Service Director Disability & Mental Health","R1100"
"Wolverhampton City Council","http://opendatacommunities.org/id/metropolitan-district-council/wolverhampton","Baker Hall Limited","","892.50","Services - Consultants","130118994","20/05/16","Planning","Building Consultancy","R4404"
"Wolverhampton City Council","http://opendatacommunities.org/id/metropolitan-district-council/wolverhampton","Baker Hall Limited","","700.00","External Professional Fees","130118740","20/05/16","","GF - Interchange - Ph2 Train Station/MSCP/Metro Extension","C6002"
"Wolverhampton City Council","http://opendatacommunities.org/id/metropolitan-district-council/wolverhampton","Bathex Limited","","900.00","Adaptations","130119309","13/05/16","Independent Living Service","Independent Living Service","R4411"
"Wolverhampton City Council","http://opendatacommunities.org/id/metropolitan-district-council/wolverhampton","Bbp.Security Services & Training Limited","","1,173.50","Services - Security","130120880","20/05/16","Cleaning & Caretaking Service","Parkfields Office Accomodation","R4405"
"Wolverhampton City Council","http://opendatacommunities.org/id/metropolitan-district-council/wolverhampton","Bbp.Security Services & Training Limited","","1,585.00","Services - Security","130120884","20/05/16","Cleaning & Caretaking Service","Schools Cleaning","R4405"
"Wolverhampton City Council","http://opendatacommunities.org/id/metropolitan-district-council/wolverhampton","Bbp.Security Services & Training Limited","","943.65","Services - Security","130121028","20/05/16","Visitor Economy","One Off Rechargeable Events","R4405"
"Wolverhampton City Council","http://opendatacommunities.org/id/metropolitan-district-council/wolverhampton","Bbp.Security Services & Training Limited","","66.96","Services - Security","130118220","06/05/16","Visitor Economy","ST GEORGES DAY","R4405"
"Wolverhampton City Council","http://opendatacommunities.org/id/metropolitan-district-council/wolverhampton","Bbp.Security Services & Training Limited","","1,440.00","Services - Security","130120885","25/05/16","Older People Provider Services","Woden Resource Centre","R4405"
"Wolverhampton City Council","http://opendatacommunities.org/id/metropolitan-district-council/wolverhampton","Bbp.Security Services & Training Limited","","2,624.28","Services - Security","130121561","25/05/16","Visitor Economy","Vaisakhi","R4405"
"Wolverhampton City Council","http://opendatacommunities.org/id/metropolitan-district-council/wolverhampton","Bbp.Security Services & Training Limited","","259.64","Services - Security","130121027","25/05/16","Markets","Wolverhampton Indoor and Open Market","R4405"
"Wolverhampton City Council","http://opendatacommunities.org/id/metropolitan-district-council/wolverhampton","Bbp.Security Services & Training Limited","","2,700.00","Services - Security","130121479","25/05/16","Cleaning & Caretaking Service","Parkfields Office Accomodation","R4405"
"Wolverhampton City Council","http://opendatacommunities.org/id/metropolitan-district-council/wolverhampton","Beacon Centre For The Blind","","-24.15","TPP - Day Care","130116876","04/05/16","Older People Commissioning","OP Care Purchasing (Block Placements)","R5430"
"Wolverhampton City Council","http://opendatacommunities.org/id/metropolitan-district-council/wolverhampton","Beacon Centre For The Blind","","24.15","TPP - Day Care","130116876","04/05/16","Older People Commissioning","OP Care Purchasing (Block Placements)","R5430"
"Wolverhampton City Council","http://opendatacommunities.org/id/metropolitan-district-council/wolverhampton","Beacon Centre For The Blind","","-24.15","TPP - Day Care","130116876","04/05/16","Older People Commissioning","OP Care Purchasing (Block Placements)","R5430"
"Wolverhampton City Council","http://opendatacommunities.org/id/metropolitan-district-council/wolverhampton","Beacon Centre For The Blind","","6,327.30","TPP - Day Care","130116877","04/05/16","Older People Commissioning","OP Care Purchasing (Block Placements)","R5430"
"Wolverhampton City Council","http://opendatacommunities.org/id/metropolitan-district-council/wolverhampton","Beacon Centre For The Blind","","-6,327.30","TPP - Day Care","130116877","04/05/16","Older People Commissioning","OP Care Purchasing (Block Placements)","R5430"
"Wolverhampton City Council","http://opendatacommunities.org/id/metropolitan-district-council/wolverhampton","Beacon Centre For The Blind","","6,327.30","TPP - Day Care","130116877","04/05/16","Older People Commissioning","OP Care Purchasing (Block Placements)","R5430"
"Wolverhampton City Council","http://opendatacommunities.org/id/metropolitan-district-council/wolverhampton","Beacon Centre For The Blind","","5,602.80","TPP - Day Care","130116881","04/05/16","Older People Commissioning","OP Care Purchasing (Block Placements)","R5430"
"Wolverhampton City Council","http://opendatacommunities.org/id/metropolitan-district-council/wolverhampton","Beacon Centre For The Blind","","-5,602.80","TPP - Day Care","130116881","04/05/16","Older People Commissioning","OP Care Purchasing (Block Placements)","R5430"
"Wolverhampton City Council","http://opendatacommunities.org/id/metropolitan-district-council/wolverhampton","Beacon Centre For The Blind","","5,602.80","TPP - Day Care","130116881","04/05/16","Older People Commissioning","OP Care Purchasing (Block Placements)","R5430"
"Wolverhampton City Council","http://opendatacommunities.org/id/metropolitan-district-council/wolverhampton","Beacon Centre For The Blind","","5,482.05","TPP - Day Care","130116879","04/05/16","Older People Commissioning","OP Care Purchasing (Block Placements)","R5430"
"Wolverhampton City Council","http://opendatacommunities.org/id/metropolitan-district-council/wolverhampton","Beacon Centre For The Blind","","-5,482.05","TPP - Day Care","130116879","04/05/16","Older People Commissioning","OP Care Purchasing (Block Placements)","R5430"
"Wolverhampton City Council","http://opendatacommunities.org/id/metropolitan-district-council/wolverhampton","Beacon Centre For The Blind","","5,482.05","TPP - Day Care","130116879","04/05/16","Older People Commissioning","OP Care Purchasing (Block Placements)","R5430"
"Wolverhampton City Council","http://opendatacommunities.org/id/metropolitan-district-council/wolverhampton","Beacon Centre For The Blind","","5,699.40","TPP - Day Care","130116878","04/05/16","Older People Commissioning","OP Care Purchasing (Block Placements)","R5430"
"Wolverhampton City Council","http://opendatacommunities.org/id/metropolitan-district-council/wolverhampton","Beacon Centre For The Blind","","-5,699.40","TPP - Day Care","130116878","04/05/16","Older People Commissioning","OP Care Purchasing (Block Placements)","R5430"
"Wolverhampton City Council","http://opendatacommunities.org/id/metropolitan-district-council/wolverhampton","Beacon Centre For The Blind","","5,699.40","TPP - Day Care","130116878","04/05/16","Older People Commissioning","OP Care Purchasing (Block Placements)","R5430"
"Wolverhampton City Council","http://opendatacommunities.org/id/metropolitan-district-council/wolverhampton","Bearing Man Limited","","23.36","Equipment - Purchase","190231707","18/05/16","Fleet Services","Fleet Management","R4000"
"Wolverhampton City Council","http://opendatacommunities.org/id/metropolitan-district-council/wolverhampton","Bearing Man Limited","","23.36","Equipment - Purchase","190231708","18/05/16","Fleet Services","Fleet Management","R4000"
"Wolverhampton City Council","http://opendatacommunities.org/id/metropolitan-district-council/wolverhampton","Berendsen UK Limited","","233.15","Protective Clothing","190231199","13/05/16","Fleet Services","Fleet Management","R4200"
"Wolverhampton City Council","http://opendatacommunities.org/id/metropolitan-district-council/wolverhampton","Berrymans Lace Mawer","","299.50","Insurance - General","130122117","27/05/16","Audit Services","Legal Liability","R4962"
"Wolverhampton City Council","http://opendatacommunities.org/id/metropolitan-district-council/wolverhampton","Beverages Direct Limited","","261.78","Provisions (Resale)","130118952","20/05/16","Catering","Education Catering - General Overheads","R4102"
"Wolverhampton City Council","http://opendatacommunities.org/id/metropolitan-district-council/wolverhampton","Beverages Direct Limited","","-261.78","Provisions (Resale)","130118952","20/05/16","Catering","Education Catering - General Overheads","R4102"
"Wolverhampton City Council","http://opendatacommunities.org/id/metropolitan-district-council/wolverhampton","Beverages Direct Limited","","261.78","Provisions (Resale)","130118952","20/05/16","Catering","Education Catering - General Overheads","R4102"
"Wolverhampton City Council","http://opendatacommunities.org/id/metropolitan-district-council/wolverhampton","Beverages Direct Limited","","266.79","Provisions (Resale)","130118403","11/05/16","Catering","Education Catering - General Overheads","R4102"
"Wolverhampton City Council","http://opendatacommunities.org/id/metropolitan-district-council/wolverhampton","Beverages Direct Limited","","-266.79","Provisions (Resale)","130118403","11/05/16","Catering","Education Catering - General Overheads","R4102"
"Wolverhampton City Council","http://opendatacommunities.org/id/metropolitan-district-council/wolverhampton","Beverages Direct Limited","","92.27","Provisions (Resale)","130118403","11/05/16","Catering","Education Catering - General Overheads","R4102"
"Wolverhampton City Council","http://opendatacommunities.org/id/metropolitan-district-council/wolverhampton","Beverages Direct Limited","","174.52","Provisions (Resale)","130118403","11/05/16","Catering","Education Catering - General Overheads","R4102"
"Wolverhampton City Council","http://opendatacommunities.org/id/metropolitan-district-council/wolverhampton","Beverages Direct Limited","","388.99","Provisions (Resale)","130121003","25/05/16","Catering","Education Catering - General Overheads","R4102"
"Wolverhampton City Council","http://opendatacommunities.org/id/metropolitan-district-council/wolverhampton","Beverages Direct Limited","","441.25","Provisions (Resale)","130121003","25/05/16","Catering","Education Catering - General Overheads","R4102"
"Wolverhampton City Council","http://opendatacommunities.org/id/metropolitan-district-council/wolverhampton","Beverages Direct Limited","","-441.25","Provisions (Resale)","130121003","25/05/16","Catering","Education Catering - General Overheads","R4102"
"Wolverhampton City Council","http://opendatacommunities.org/id/metropolitan-district-council/wolverhampton","Beverages Direct Limited","","52.26","Provisions (Resale)","130121003","25/05/16","Catering","Education Catering - General Overheads","R4102"
"Wolverhampton City Council","http://opendatacommunities.org/id/metropolitan-district-council/wolverhampton","Bickford Truck Hire Limited","","402.50","Vehicle Maintenance - Repairs","130118553","04/05/16","Street Lighting","Street Lighting Maintenance","R3022"
"Wolverhampton City Council","http://opendatacommunities.org/id/metropolitan-district-council/wolverhampton","Bilston C Of E Primary School Fund","","1,120.00","Fixtures and Fittings - Purchases","190227938","04/05/16","Schools","Bilston Church of England Primary School","R2500"
"Wolverhampton City Council","http://opendatacommunities.org/id/metropolitan-district-council/wolverhampton","Bilston Nursery School Fund Account","","200.00","Grant Payments to Individuals","190227606","04/05/16","Looked After Children","LAC Education Team (LACE)","R6402"
"Wolverhampton City Council","http://opendatacommunities.org/id/metropolitan-district-council/wolverhampton","Bilston Nursery School Fund Account","","100.00","Grant Payments to Individuals","190227606","04/05/16","Looked After Children","LAC Education Team (LACE)","R6402"
"Wolverhampton City Council","http://opendatacommunities.org/id/metropolitan-district-council/wolverhampton","Birmingham CC - General Fund","","8,230.04","Enhanced Pension","190234453","25/05/16","Central Corporate Budgets","Local Government Reorganisation","R1301"
"Wolverhampton City Council","http://opendatacommunities.org/id/metropolitan-district-council/wolverhampton","Birmingham CC - General Fund","","907.99","Client Transport - SEN","130122058","27/05/16","School Planning & Resources","Special - Transport","R3043"
"Wolverhampton City Council","http://opendatacommunities.org/id/metropolitan-district-council/wolverhampton","Blakedown Sport & Play Limited","","11,577.54","Construction and Conversion","130121641","27/05/16","","Sports Investment Strategy","C1100"
"Wolverhampton City Council","http://opendatacommunities.org/id/metropolitan-district-council/wolverhampton","Blitz Recycling Limited","","130.00","R&M - Departmental response (external)","130119667","11/05/16","Schools","Eastfield Nursery","R2003"
"Wolverhampton City Council","http://opendatacommunities.org/id/metropolitan-district-council/wolverhampton","Blitz Recycling Limited","","130.00","R&M - Departmental response (external)","130119669","11/05/16","Schools","Eastfield Nursery","R2003"
"Wolverhampton City Council","http://opendatacommunities.org/id/metropolitan-district-council/wolverhampton","Blue Group Interntl Limited T/A Bluecare","","1,332.00","Agency Staff","130118225","20/05/16","Children in Need & Child Protection","CIN/CP Social Work Unit - Area 4","R1100"
"Wolverhampton City Council","http://opendatacommunities.org/id/metropolitan-district-council/wolverhampton","Blue Group Interntl Limited T/A Bluecare","","555.00","Agency Staff","130111934","13/05/16","Children in Need & Child Protection","CIN Agency","R1100"
"Wolverhampton City Council","http://opendatacommunities.org/id/metropolitan-district-council/wolverhampton","Blue Group Interntl Limited T/A Bluecare","","1,332.00","Agency Staff","130117017","13/05/16","Children in Need & Child Protection","CIN/CP Social Work Unit - Area 4","R1100"
"Wolverhampton City Council","http://opendatacommunities.org/id/metropolitan-district-council/wolverhampton","Blue Group Interntl Limited T/A Bluecare","","1,332.00","Agency Staff","130117165","13/05/16","Children in Need & Child Protection","CIN/CP Social Work Unit - Area 4","R1100"
"Wolverhampton City Council","http://opendatacommunities.org/id/metropolitan-district-council/wolverhampton","Blue Group Interntl Limited T/A Bluecare","","84.94","Agency Staff","130117167","13/05/16","Children in Need & Child Protection","CIN - Warstones MAST - Area 4","R1100"
"Wolverhampton City Council","http://opendatacommunities.org/id/metropolitan-district-council/wolverhampton","Blue Group Interntl Limited T/A Bluecare","","36.90","Agency Staff","130117385","13/05/16","Children in Need & Child Protection","CIN/CP Social Work Unit - Area 4","R1100"
"Wolverhampton City Council","http://opendatacommunities.org/id/metropolitan-district-council/wolverhampton","Blue Group Interntl Limited T/A Bluecare","","5.13","Agency Staff","130117168","13/05/16","Children in Need & Child Protection","CIN - Warstones MAST - Area 4","R1100"
"Wolverhampton City Council","http://opendatacommunities.org/id/metropolitan-district-council/wolverhampton","Blue Group Interntl Limited T/A Bluecare","","1,020.00","Agency Staff","130117387","13/05/16","Children in Need & Child Protection","CIN/CP Social Work Unit - Area 4","R1100"
"Wolverhampton City Council","http://opendatacommunities.org/id/metropolitan-district-council/wolverhampton","Blue Group Interntl Limited T/A Bluecare","","1,020.00","Agency Staff","130117386","13/05/16","Children in Need & Child Protection","CIN/CP Social Work Unit - Area 4","R1100"
"Wolverhampton City Council","http://opendatacommunities.org/id/metropolitan-district-council/wolverhampton","Blue Group Interntl Limited T/A Bluecare","","1.80","Agency Staff","130116513","06/05/16","Children in Need & Child Protection","CIN/CP Social Work Unit - Area 3B","R1100"
"Wolverhampton City Council","http://opendatacommunities.org/id/metropolitan-district-council/wolverhampton","Blue Group Interntl Limited T/A Bluecare","","1,369.00","Agency Staff","130116512","06/05/16","Children in Need & Child Protection","CIN/CP Social Work Unit - Area 3B","R1100"
"Wolverhampton City Council","http://opendatacommunities.org/id/metropolitan-district-council/wolverhampton","Blue Group Interntl Limited T/A Bluecare","","7.65","Agency Staff","130115662","11/05/16","Children in Need & Child Protection","CIN/CP Social Work Unit - Area 3B","R1100"
"Wolverhampton City Council","http://opendatacommunities.org/id/metropolitan-district-council/wolverhampton","Blue Group Interntl Limited T/A Bluecare","","1,091.50","Agency Staff","130115661","04/05/16","Children in Need & Child Protection","CIN - Graisley MAST - Area 3","R1100"
"Wolverhampton City Council","http://opendatacommunities.org/id/metropolitan-district-council/wolverhampton","Blue Group Interntl Limited T/A Bluecare","","1,332.00","Agency Staff","130113965","18/05/16","Children in Need & Child Protection","CIN - Warstones MAST - Area 4","R1100"
"Wolverhampton City Council","http://opendatacommunities.org/id/metropolitan-district-council/wolverhampton","Blue Group Interntl Limited T/A Bluecare","","1,080.00","Agency Staff","130114221","18/05/16","Children in Need & Child Protection","CIN - Warstones MAST - Area 4","R1100"
"Wolverhampton City Council","http://opendatacommunities.org/id/metropolitan-district-council/wolverhampton","Blue Group Interntl Limited T/A Bluecare","","75.60","Agency Staff","130117166","27/05/16","Children in Need & Child Protection","CIN - Bingley CC - Area 4","R1100"
"Wolverhampton City Council","http://opendatacommunities.org/id/metropolitan-district-council/wolverhampton","Blue Mountain Foods Limited","","-126.00","Provisions (Resale)","130117141","06/05/16","Catering","Meals on Wheels","R4102"
"Wolverhampton City Council","http://opendatacommunities.org/id/metropolitan-district-council/wolverhampton","Blue Mountain Foods Limited","","76.00","Provisions (Resale)","130116843","06/05/16","Catering","Education Catering - General Overheads","R4102"
"Wolverhampton City Council","http://opendatacommunities.org/id/metropolitan-district-council/wolverhampton","Blue Mountain Foods Limited","","114.00","Provisions (Resale)","130116842","06/05/16","Catering","Education Catering - General Overheads","R4102"
"Wolverhampton City Council","http://opendatacommunities.org/id/metropolitan-district-council/wolverhampton","Blue Mountain Foods Limited","","19.00","Provisions (Resale)","130116841","06/05/16","Catering","Education Catering - General Overheads","R4102"
"Wolverhampton City Council","http://opendatacommunities.org/id/metropolitan-district-council/wolverhampton","Blue Mountain Foods Limited","","38.00","Provisions (Resale)","130121773","25/05/16","Catering","Education Catering - General Overheads","R4102"
"Wolverhampton City Council","http://opendatacommunities.org/id/metropolitan-district-council/wolverhampton","Blue Mountain Foods Limited","","57.00","Provisions (Resale)","130121779","25/05/16","Catering","Education Catering - General Overheads","R4102"
"Wolverhampton City Council","http://opendatacommunities.org/id/metropolitan-district-council/wolverhampton","Blue Mountain Foods Limited","","76.00","Provisions (Resale)","130121778","25/05/16","Catering","Education Catering - General Overheads","R4102"
"Wolverhampton City Council","http://opendatacommunities.org/id/metropolitan-district-council/wolverhampton","Blue Mountain Foods Limited","","76.00","Provisions (Resale)","130121774","25/05/16","Catering","Education Catering - General Overheads","R4102"
"Wolverhampton City Council","http://opendatacommunities.org/id/metropolitan-district-council/wolverhampton","Blue Mountain Foods Limited","","76.00","Provisions (Resale)","130121775","25/05/16","Catering","Education Catering - General Overheads","R4102"
"Wolverhampton City Council","http://opendatacommunities.org/id/metropolitan-district-council/wolverhampton","BME Travel","","1,400.00","Client Transport","130118750","20/05/16","School Planning & Resources","Special - Transport","R3042"
"Wolverhampton City Council","http://opendatacommunities.org/id/metropolitan-district-council/wolverhampton","Boningale Nurseries","","1,676.00","Materials","130119070","06/05/16","Healthier Places Service","Public Health - Healthier Places Team","R4007"
"Wolverhampton City Council","http://opendatacommunities.org/id/metropolitan-district-council/wolverhampton","Boots UK Ltd","","12.85","TPP - Public Health Contracts","190234483","25/05/16","Contracts","Sexual Health","R5060"
"Wolverhampton City Council","http://opendatacommunities.org/id/metropolitan-district-council/wolverhampton","Boots UK Ltd","","105.34","TPP - Public Health Contracts","190234482","25/05/16","Contracts","Sexual Health","R5060"
"Wolverhampton City Council","http://opendatacommunities.org/id/metropolitan-district-council/wolverhampton","Bottomline Technologies Europe Limited","","500.00","Computing - Purchase of Software","130115907","11/05/16","The Hub","Quality and Improvement","R4531"
"Wolverhampton City Council","http://opendatacommunities.org/id/metropolitan-district-council/wolverhampton","Bradley Environmental Consultant Limited","","400.00","Training Expenses","130120097","18/05/16","Audit Services","Site Management Health & Safety","R1650"
"Wolverhampton City Council","http://opendatacommunities.org/id/metropolitan-district-council/wolverhampton","Brakes/Brakefresh","","79.65","Provisions (Resale)","130117481","06/05/16","Catering","Civic Centre Catering","R4102"
"Wolverhampton City Council","http://opendatacommunities.org/id/metropolitan-district-council/wolverhampton","Brakes/Brakefresh","","-79.65","Provisions (Resale)","130117481","06/05/16","Catering","Civic Centre Catering","R4102"
"Wolverhampton City Council","http://opendatacommunities.org/id/metropolitan-district-council/wolverhampton","Brakes/Brakefresh","","79.65","Provisions (Resale)","130117481","06/05/16","Catering","Civic Centre Catering","R4102"
"Wolverhampton City Council","http://opendatacommunities.org/id/metropolitan-district-council/wolverhampton","Brakes/Brakefresh","","64.24","Provisions (Resale)","130117483","06/05/16","Catering","Civic Centre Catering","R4102"
"Wolverhampton City Council","http://opendatacommunities.org/id/metropolitan-district-council/wolverhampton","Brakes/Brakefresh","","-64.24","Provisions (Resale)","130117483","06/05/16","Catering","Civic Centre Catering","R4102"
"Wolverhampton City Council","http://opendatacommunities.org/id/metropolitan-district-council/wolverhampton","Brakes/Brakefresh","","64.24","Provisions (Resale)","130117483","06/05/16","Catering","Civic Centre Catering","R4102"
"Wolverhampton City Council","http://opendatacommunities.org/id/metropolitan-district-council/wolverhampton","Brakes/Brakefresh","","140.26","Provisions (Resale)","130117482","06/05/16","Catering","Civic Centre Catering","R4102"
"Wolverhampton City Council","http://opendatacommunities.org/id/metropolitan-district-council/wolverhampton","Brakes/Brakefresh","","-140.26","Provisions (Resale)","130117482","06/05/16","Catering","Civic Centre Catering","R4102"
"Wolverhampton City Council","http://opendatacommunities.org/id/metropolitan-district-council/wolverhampton","Brakes/Brakefresh","","29.48","Provisions (Resale)","130117482","06/05/16","Catering","Civic Centre Catering","R4102"
"Wolverhampton City Council","http://opendatacommunities.org/id/metropolitan-district-council/wolverhampton","Brakes/Brakefresh","","110.78","Provisions (Resale)","130117482","06/05/16","Catering","Civic Centre Catering","R4102"
"Wolverhampton City Council","http://opendatacommunities.org/id/metropolitan-district-council/wolverhampton","Brakes/Brakefresh","","-9.34","Provisions (Resale)","130117476","06/05/16","Catering","Civic Centre Catering","R4102"
"Wolverhampton City Council","http://opendatacommunities.org/id/metropolitan-district-council/wolverhampton","Brakes/Brakefresh","","9.34","Provisions (Resale)","130117476","06/05/16","Catering","Civic Centre Catering","R4102"
"Wolverhampton City Council","http://opendatacommunities.org/id/metropolitan-district-council/wolverhampton","Brakes/Brakefresh","","-9.34","Provisions (Resale)","130117476","06/05/16","Catering","Civic Centre Catering","R4102"
"Wolverhampton City Council","http://opendatacommunities.org/id/metropolitan-district-council/wolverhampton","Brakes/Brakefresh","","93.62","Provisions (Not for resale)","130118219","06/05/16","Catering","Civic Centre Catering","R4101"
"Wolverhampton City Council","http://opendatacommunities.org/id/metropolitan-district-council/wolverhampton","Brakes/Brakefresh","","68.91","Provisions (Not for resale)","130118218","06/05/16","Catering","Civic Centre Catering","R4101"
"Wolverhampton City Council","http://opendatacommunities.org/id/metropolitan-district-council/wolverhampton","Brakes/Brakefresh","","-68.91","Provisions (Not for resale)","130118218","06/05/16","Catering","Civic Centre Catering","R4101"
"Wolverhampton City Council","http://opendatacommunities.org/id/metropolitan-district-council/wolverhampton","Brakes/Brakefresh","","51.87","Provisions (Not for resale)","130118218","06/05/16","Catering","Civic Centre Catering","R4101"
"Wolverhampton City Council","http://opendatacommunities.org/id/metropolitan-district-council/wolverhampton","Brakes/Brakefresh","","17.04","Provisions (Not for resale)","130118218","06/05/16","Catering","Civic Centre Catering","R4101"
"Wolverhampton City Council","http://opendatacommunities.org/id/metropolitan-district-council/wolverhampton","Brakes/Brakefresh","","-29.89","Provisions (Not for resale)","130118217","06/05/16","Catering","Civic Centre Catering","R4101"
"Wolverhampton City Council","http://opendatacommunities.org/id/metropolitan-district-council/wolverhampton","Brakes/Brakefresh","","29.89","Provisions (Not for resale)","130118217","06/05/16","Catering","Civic Centre Catering","R4101"
"Wolverhampton City Council","http://opendatacommunities.org/id/metropolitan-district-council/wolverhampton","Brakes/Brakefresh","","-17.39","Provisions (Not for resale)","130118217","06/05/16","Catering","Civic Centre Catering","R4101"
"Wolverhampton City Council","http://opendatacommunities.org/id/metropolitan-district-council/wolverhampton","Brakes/Brakefresh","","-12.50","Provisions (Not for resale)","130118217","06/05/16","Catering","Civic Centre Catering","R4101"
"Wolverhampton City Council","http://opendatacommunities.org/id/metropolitan-district-council/wolverhampton","Brakes/Brakefresh","","143.87","Provisions (Resale)","130120767","20/05/16","Catering","Civic Centre Catering","R4102"
"Wolverhampton City Council","http://opendatacommunities.org/id/metropolitan-district-council/wolverhampton","Brakes/Brakefresh","","-143.87","Provisions (Resale)","130120767","20/05/16","Catering","Civic Centre Catering","R4102"
"Wolverhampton City Council","http://opendatacommunities.org/id/metropolitan-district-council/wolverhampton","Brakes/Brakefresh","","143.87","Provisions (Resale)","130120767","20/05/16","Catering","Civic Centre Catering","R4102"
"Wolverhampton City Council","http://opendatacommunities.org/id/metropolitan-district-council/wolverhampton","Brakes/Brakefresh","","106.05","Provisions (Resale)","130120766","20/05/16","Catering","Civic Centre Catering","R4102"
"Wolverhampton City Council","http://opendatacommunities.org/id/metropolitan-district-council/wolverhampton","Brakes/Brakefresh","","-106.05","Provisions (Resale)","130120766","20/05/16","Catering","Civic Centre Catering","R4102"
"Wolverhampton City Council","http://opendatacommunities.org/id/metropolitan-district-council/wolverhampton","Brakes/Brakefresh","","106.05","Provisions (Resale)","130120766","20/05/16","Catering","Civic Centre Catering","R4102"
"Wolverhampton City Council","http://opendatacommunities.org/id/metropolitan-district-council/wolverhampton","Brakes/Brakefresh","","50.24","Provisions (Not for resale)","130120999","20/05/16","Catering","Civic Centre Catering","R4101"
"Wolverhampton City Council","http://opendatacommunities.org/id/metropolitan-district-council/wolverhampton","Brakes/Brakefresh","","127.51","Provisions (Resale)","130117159","04/05/16","Catering","Civic Centre Catering","R4102"
"Wolverhampton City Council","http://opendatacommunities.org/id/metropolitan-district-council/wolverhampton","Brakes/Brakefresh","","-127.51","Provisions (Resale)","130117159","04/05/16","Catering","Civic Centre Catering","R4102"
"Wolverhampton City Council","http://opendatacommunities.org/id/metropolitan-district-council/wolverhampton","Brakes/Brakefresh","","127.51","Provisions (Resale)","130117159","04/05/16","Catering","Civic Centre Catering","R4102"
"Wolverhampton City Council","http://opendatacommunities.org/id/metropolitan-district-council/wolverhampton","Brakes/Brakefresh","","37.20","Provisions (Resale)","130118002","04/05/16","Catering","Civic Centre Catering","R4102"
"Wolverhampton City Council","http://opendatacommunities.org/id/metropolitan-district-council/wolverhampton","Brakes/Brakefresh","","-37.20","Provisions (Resale)","130118002","04/05/16","Catering","Civic Centre Catering","R4102"
"Wolverhampton City Council","http://opendatacommunities.org/id/metropolitan-district-council/wolverhampton","Brakes/Brakefresh","","37.20","Provisions (Resale)","130118002","04/05/16","Catering","Civic Centre Catering","R4102"
"Wolverhampton City Council","http://opendatacommunities.org/id/metropolitan-district-council/wolverhampton","Brakes/Brakefresh","","-205.56","Provisions (Resale)","130120765","25/05/16","Catering","Civic Centre Catering","R4102"
"Wolverhampton City Council","http://opendatacommunities.org/id/metropolitan-district-council/wolverhampton","Brakes/Brakefresh","","205.56","Provisions (Resale)","130120765","25/05/16","Catering","Civic Centre Catering","R4102"
"Wolverhampton City Council","http://opendatacommunities.org/id/metropolitan-district-council/wolverhampton","Brakes/Brakefresh","","205.56","Provisions (Resale)","130120765","25/05/16","Catering","Civic Centre Catering","R4102"
"Wolverhampton City Council","http://opendatacommunities.org/id/metropolitan-district-council/wolverhampton","Brand Creative Media Limited","","180.00","Marketing \ Non-staff advertising","130118795","20/05/16","Standards and Vulnerable Pupils","Parent / Partnership Service","R4317"
"Wolverhampton City Council","http://opendatacommunities.org/id/metropolitan-district-council/wolverhampton","Brand Creative Media Limited","","-180.00","Marketing \ Non-staff advertising","130118795","20/05/16","Standards and Vulnerable Pupils","Parent / Partnership Service","R4317"
"Wolverhampton City Council","http://opendatacommunities.org/id/metropolitan-district-council/wolverhampton","Brand Creative Media Limited","","180.00","Marketing \ Non-staff advertising","130118795","20/05/16","Standards and Vulnerable Pupils","Parent / Partnership Service","R4317"
"Wolverhampton City Council","http://opendatacommunities.org/id/metropolitan-district-council/wolverhampton","Bridgnorth Road Pharmacy Limited","","0.31","TPP - Public Health Contracts","190234481","25/05/16","Contracts","Sexual Health","R5060"
"Wolverhampton City Council","http://opendatacommunities.org/id/metropolitan-district-council/wolverhampton","Bristow & Sutor","","16.50","Services - Professional Fees","130119553","13/05/16","Revenues & Benefits","Revenues","R4400"
"Wolverhampton City Council","http://opendatacommunities.org/id/metropolitan-district-council/wolverhampton","Bristow & Sutor","","20.00","Services - Professional Fees","130119552","13/05/16","Revenues & Benefits","Revenues","R4400"
"Wolverhampton City Council","http://opendatacommunities.org/id/metropolitan-district-council/wolverhampton","Bristow & Sutor","","42.00","Services - Professional Fees","130118522","18/05/16","Revenues & Benefits","Revenues","R4400"
"Wolverhampton City Council","http://opendatacommunities.org/id/metropolitan-district-council/wolverhampton","Bristow & Sutor","","386.25","Services - Professional Fees","130112866","18/05/16","Revenues & Benefits","Revenues","R4400"
"Wolverhampton City Council","http://opendatacommunities.org/id/metropolitan-district-council/wolverhampton","Bristow & Sutor","","918.60","Services - Professional Fees","130113741","18/05/16","Revenues & Benefits","Revenues","R4400"
"Wolverhampton City Council","http://opendatacommunities.org/id/metropolitan-district-council/wolverhampton","British Gas Trading Limited","","191.84","Electricity","190233505","20/05/16","Housing Revenue Account","Hostels / Outreach","R2100"
"Wolverhampton City Council","http://opendatacommunities.org/id/metropolitan-district-council/wolverhampton","BT (Phone Bills)","","330.21","Services - Fees and Charges","130118832","20/05/16","Leisure Services","WV Active Catering","R4401"
"Wolverhampton City Council","http://opendatacommunities.org/id/metropolitan-district-council/wolverhampton","BT (Phone Bills)","","-330.21","Services - Fees and Charges","130118832","20/05/16","Leisure Services","WV Active Catering","R4401"
"Wolverhampton City Council","http://opendatacommunities.org/id/metropolitan-district-council/wolverhampton","BT (Phone Bills)","","270.21","Services - Fees and Charges","130118832","20/05/16","Leisure Services","WV Active Catering","R4401"
"Wolverhampton City Council","http://opendatacommunities.org/id/metropolitan-district-council/wolverhampton","BT (Phone Bills)","","60.00","Services - Fees and Charges","130118832","20/05/16","Leisure Services","WV Active Catering","R4401"
"Wolverhampton City Council","http://opendatacommunities.org/id/metropolitan-district-council/wolverhampton","BT (Phone Bills)","","6,108.01","Computing - Internet","130115556","20/05/16","Operation & Maintenance of Existing Network","UTC Wolverhampton","R4537"
"Wolverhampton City Council","http://opendatacommunities.org/id/metropolitan-district-council/wolverhampton","BT (Phone Bills)","","3,258.57","Computing - Internet","190230373","13/05/16","ICTS","Strategic ICTS (ICT Service Budget)","R4537"
"Wolverhampton City Council","http://opendatacommunities.org/id/metropolitan-district-council/wolverhampton","BT (Phone Bills)","","661.28","Computing - Internet","190230375","13/05/16","ICTS","Strategic ICTS (ICT Service Budget)","R4537"
"Wolverhampton City Council","http://opendatacommunities.org/id/metropolitan-district-council/wolverhampton","BT (Phone Bills)","","681.92","Computing - Internet","190230374","13/05/16","ICTS","Strategic ICTS (ICT Service Budget)","R4537"
"Wolverhampton City Council","http://opendatacommunities.org/id/metropolitan-district-council/wolverhampton","BT (Phone Bills)","","147.42","Computing - Internet","190230379","13/05/16","ICTS","Strategic ICTS (ICT Service Budget)","R4537"
"Wolverhampton City Council","http://opendatacommunities.org/id/metropolitan-district-council/wolverhampton","BT (Phone Bills)","","147.42","Computing - Internet","190230377","13/05/16","ICTS","Strategic ICTS (ICT Service Budget)","R4537"
"Wolverhampton City Council","http://opendatacommunities.org/id/metropolitan-district-council/wolverhampton","BT (Phone Bills)","","147.42","Computing - Internet","190230376","13/05/16","ICTS","Strategic ICTS (ICT Service Budget)","R4537"
"Wolverhampton City Council","http://opendatacommunities.org/id/metropolitan-district-council/wolverhampton","BT (Phone Bills)","","130.92","Computing - Internet","190230378","13/05/16","ICTS","Strategic ICTS (ICT Service Budget)","R4537"
"Wolverhampton City Council","http://opendatacommunities.org/id/metropolitan-district-council/wolverhampton","BT (Phone Bills)","","38.00","Comms - Telephone Rental","130118034","13/05/16","Operation & Maintenance of Existing Network","UTC Wolverhampton","R4504"
"Wolverhampton City Council","http://opendatacommunities.org/id/metropolitan-district-council/wolverhampton","BT (Phone Bills)","","123.27","Comms - Telephone Rental","130118666","06/05/16","Bereavement Services","Cemeteries","R4504"
"Wolverhampton City Council","http://opendatacommunities.org/id/metropolitan-district-council/wolverhampton","BT (Phone Bills)","","-123.27","Comms - Telephone Rental","130118666","06/05/16","Bereavement Services","Cemeteries","R4504"
"Wolverhampton City Council","http://opendatacommunities.org/id/metropolitan-district-council/wolverhampton","BT (Phone Bills)","","93.27","Comms - Telephone Rental","130118666","06/05/16","Bereavement Services","Cemeteries","R4504"
"Wolverhampton City Council","http://opendatacommunities.org/id/metropolitan-district-council/wolverhampton","BT (Phone Bills)","","30.00","Comms - Telephone Rental","130118666","06/05/16","Bereavement Services","Cemeteries","R4504"
"Wolverhampton City Council","http://opendatacommunities.org/id/metropolitan-district-council/wolverhampton","BT (Phone Bills)","","190.20","Comms - Telephone Rental","190230118","11/05/16","Parking Services","Parking Enforcement","R4504"
"Wolverhampton City Council","http://opendatacommunities.org/id/metropolitan-district-council/wolverhampton","BT (Phone Bills)","","117.00","Comms - Telephone Call charges","190230119","11/05/16","Parking Services","Car Parks Operational Staff","R4505"
"Wolverhampton City Council","http://opendatacommunities.org/id/metropolitan-district-council/wolverhampton","BT (Phone Bills)","","2,824.00","Equipment - Hire","130116803","04/05/16","Operation & Maintenance of Existing Network","UTC Wolverhampton","R4001"
"Wolverhampton City Council","http://opendatacommunities.org/id/metropolitan-district-council/wolverhampton","BT (Phone Bills)","","127.05","Computing - Internet","130107059","18/05/16","ICTS","Strategic ICTS (ICT Service Budget)","R4537"
"Wolverhampton City Council","http://opendatacommunities.org/id/metropolitan-district-council/wolverhampton","BT (Phone Bills)","","30.00","Fixtures and Fittings - R&M","190232091","18/05/16","Community Centres (Corporate Landlord)","Caretakers Community Centre","R2502"
"Wolverhampton City Council","http://opendatacommunities.org/id/metropolitan-district-council/wolverhampton","BT (Phone Bills)","","84.90","Fixtures and Fittings - R&M","190232090","18/05/16","Community Centres (Corporate Landlord)","Caretakers Community Centre","R2502"
"Wolverhampton City Council","http://opendatacommunities.org/id/metropolitan-district-council/wolverhampton","BT (Phone Bills)","","278.90","Services - Assistive technology","190232217","18/05/16","All Age Disability (Disabilities)","CSDP","R4407"
"Wolverhampton City Council","http://opendatacommunities.org/id/metropolitan-district-council/wolverhampton","BT (Phone Bills)","","68.97","Comms - Telephone Rental","130118223","18/05/16","School Planning & Resources","Pupil & Student Support","R4504"
"Wolverhampton City Council","http://opendatacommunities.org/id/metropolitan-district-council/wolverhampton","BT (Phone Bills)","","30.00","Comms - Telephone Rental","130118223","18/05/16","School Planning & Resources","Pupil & Student Support","R4504"
"Wolverhampton City Council","http://opendatacommunities.org/id/metropolitan-district-council/wolverhampton","BT (Phone Bills)","","166.45","Comms - Telephone Rental","190232214","18/05/16","Engineering & Civic Centre","Statutory Services (10RM)","R4504"
"Wolverhampton City Council","http://opendatacommunities.org/id/metropolitan-district-council/wolverhampton","BT (Phone Bills)","","516.78","Services - Assistive technology","190232220","18/05/16","All Age Disability (Disabilities)","CSDP","R4407"
"Wolverhampton City Council","http://opendatacommunities.org/id/metropolitan-district-council/wolverhampton","BT (Phone Bills)","","98.10","Fixtures and Fittings - R&M","190234451","25/05/16","Community Centres (Corporate Landlord)","Caretakers Community Centre","R2502"
"Wolverhampton City Council","http://opendatacommunities.org/id/metropolitan-district-council/wolverhampton","BT (Phone Bills)","","84.90","Fixtures and Fittings - R&M","190234450","25/05/16","Community Centres (Corporate Landlord)","Caretakers Community Centre","R2502"
"Wolverhampton City Council","http://opendatacommunities.org/id/metropolitan-district-council/wolverhampton","BT (Phone Bills)","","84.90","Fixtures and Fittings - R&M","190234452","25/05/16","Community Centres (Corporate Landlord)","Caretakers Community Centre","R2502"
"Wolverhampton City Council","http://opendatacommunities.org/id/metropolitan-district-council/wolverhampton","BT (Phone Bills)","","30.00","Computing - Internet","130120266","27/05/16","ICTS","Strategic ICTS (ICT Service Budget)","R4537"
"Wolverhampton City Council","http://opendatacommunities.org/id/metropolitan-district-council/wolverhampton","BT (Phone Bills)","","30.00","Comms - Telephone Call charges","130121224","27/05/16","Learning Disability Provider","Community Enablement","R4505"
"Wolverhampton City Council","http://opendatacommunities.org/id/metropolitan-district-council/wolverhampton","BT (Phone Bills)","","80.97","Comms - Telephone Call charges","130121224","27/05/16","Learning Disability Provider","Community Enablement","R4505"
"Wolverhampton City Council","http://opendatacommunities.org/id/metropolitan-district-council/wolverhampton","BT (Phone Bills)","","110.97","Comms - Telephone Call charges","130121224","27/05/16","Learning Disability Provider","Community Enablement","R4505"
"Wolverhampton City Council","http://opendatacommunities.org/id/metropolitan-district-council/wolverhampton","BT (Phone Bills)","","-110.97","Comms - Telephone Call charges","130121224","27/05/16","Learning Disability Provider","Community Enablement","R4505"
"Wolverhampton City Council","http://opendatacommunities.org/id/metropolitan-district-council/wolverhampton","BT (Phone Bills)","","132.18","Computing - Internet","130120266","27/05/16","ICTS","Strategic ICTS (ICT Service Budget)","R4537"
"Wolverhampton City Council","http://opendatacommunities.org/id/metropolitan-district-council/wolverhampton","BT Phone Book Advertising","","52,921.01","Construction and Conversion","130118811","20/05/16","","Integrated Transport","C1100"
"Wolverhampton City Council","http://opendatacommunities.org/id/metropolitan-district-council/wolverhampton","British Telecommunications-Openreach","","450.50","Construction and Conversion","130121467","25/05/16","","South Side","C1100"
"Wolverhampton City Council","http://opendatacommunities.org/id/metropolitan-district-council/wolverhampton","Brophy Grounds Maintenance Limited","","9,950.00","Grounds Maintenance - Contract","130115626","04/05/16","Environmental Maintenance","Ground Maintenance West","R2075"
"Wolverhampton City Council","http://opendatacommunities.org/id/metropolitan-district-council/wolverhampton","Browne Jacobson Llp","","427.50","Insurance - General","130120009","20/05/16","Audit Services","Legal Liability","R4962"
"Wolverhampton City Council","http://opendatacommunities.org/id/metropolitan-district-council/wolverhampton","Browne Jacobson Llp","","-427.50","Insurance - General","130120009","20/05/16","Audit Services","Legal Liability","R4962"
"Wolverhampton City Council","http://opendatacommunities.org/id/metropolitan-district-council/wolverhampton","Browne Jacobson Llp","","427.50","Insurance - General","130120009","20/05/16","Audit Services","Legal Liability","R4962"
"Wolverhampton City Council","http://opendatacommunities.org/id/metropolitan-district-council/wolverhampton","Browne Jacobson Llp","","50.00","Insurance - General","190231293","13/05/16","Audit Services","Legal Liability","R4962"
"Wolverhampton City Council","http://opendatacommunities.org/id/metropolitan-district-council/wolverhampton","Browne Jacobson Llp","","5,600.16","Insurance - General","190231292","13/05/16","Audit Services","Legal Liability","R4962"
"Wolverhampton City Council","http://opendatacommunities.org/id/metropolitan-district-council/wolverhampton","Browne Jacobson Llp","","634.50","Services - Professional Fees","130118171","13/05/16","HR Advice","Equal Pay","R4400"
"Wolverhampton City Council","http://opendatacommunities.org/id/metropolitan-district-council/wolverhampton","Browne Jacobson Llp","","1,326.00","Services - Professional Fees","130118175","06/05/16","HR Advice","Equal Pay","R4400"
"Wolverhampton City Council","http://opendatacommunities.org/id/metropolitan-district-council/wolverhampton","Browne Jacobson Llp","","481.50","Insurance - General","190232232","18/05/16","Audit Services","Legal Liability","R4962"
"Wolverhampton City Council","http://opendatacommunities.org/id/metropolitan-district-council/wolverhampton","Browne Jacobson Llp","","165.00","Insurance - General","190232223","18/05/16","Audit Services","Legal Liability","R4962"
"Wolverhampton City Council","http://opendatacommunities.org/id/metropolitan-district-council/wolverhampton","Browne Jacobson Llp","","3,868.00","Insurance - General","190232230","18/05/16","Audit Services","Legal Liability","R4962"
"Wolverhampton City Council","http://opendatacommunities.org/id/metropolitan-district-council/wolverhampton","Browne Jacobson Llp","","4,042.05","Insurance - General","190232222","18/05/16","Audit Services","Legal Liability","R4962"
"Wolverhampton City Council","http://opendatacommunities.org/id/metropolitan-district-council/wolverhampton","Browne Jacobson Llp","","5,718.76","Insurance - General","190232233","18/05/16","Audit Services","Legal Liability","R4962"
"Wolverhampton City Council","http://opendatacommunities.org/id/metropolitan-district-council/wolverhampton","Browne Jacobson Llp","","280.00","Insurance - General","190232231","18/05/16","Audit Services","Legal Liability","R4962"
"Wolverhampton City Council","http://opendatacommunities.org/id/metropolitan-district-council/wolverhampton","Browne Jacobson Llp","","2,850.00","Insurance - General","190233475","20/05/16","Audit Services","Legal Liability","R4962"
"Wolverhampton City Council","http://opendatacommunities.org/id/metropolitan-district-council/wolverhampton","BT Global","","27,144.40","TPP - Maintenance Contractor - General","130118776","20/05/16","Operation & Maintenance of Existing Network","UTC Wolverhampton","R5720"
"Wolverhampton City Council","http://opendatacommunities.org/id/metropolitan-district-council/wolverhampton","BT Global","","115.36","Comms - Telephone Rental","130117098","04/05/16","Management and Administration","Public Health Support Costs","R4504"
"Wolverhampton City Council","http://opendatacommunities.org/id/metropolitan-district-council/wolverhampton","United Living","","114,422.00","Construction and Conversion","130121436","20/05/16","","Decent Homes - Stock Improvements","C1100"
"Wolverhampton City Council","http://opendatacommunities.org/id/metropolitan-district-council/wolverhampton","United Living","","111,618.00","Construction and Conversion","130121437","20/05/16","","Structural works","C1100"
"Wolverhampton City Council","http://opendatacommunities.org/id/metropolitan-district-council/wolverhampton","United Living","","43,416.00","Construction and Conversion","130121438","20/05/16","","Decent Homes - Stock Improvements","C1100"
"Wolverhampton City Council","http://opendatacommunities.org/id/metropolitan-district-council/wolverhampton","United Living","","95,000.00","Construction and Conversion","130121650","25/05/16","","Decent Homes - Stock Improvements","C1100"
"Wolverhampton City Council","http://opendatacommunities.org/id/metropolitan-district-council/wolverhampton","United Living","","60,485.00","R&M - Departmental planned (external)","130121828","25/05/16","Housing Revenue Account","Amounts to be Settled with Wolverhampton Homes","R2001"
"Wolverhampton City Council","http://opendatacommunities.org/id/metropolitan-district-council/wolverhampton","United Living","","115,215.00","Construction and Conversion","130121648","27/05/16","","Decent Homes - Stock Improvements","C1100"
"Wolverhampton City Council","http://opendatacommunities.org/id/metropolitan-district-council/wolverhampton","United Living","","51,724.00","Construction and Conversion","130121647","27/05/16","","New Build infill schemes","C1100"
"Wolverhampton City Council","http://opendatacommunities.org/id/metropolitan-district-council/wolverhampton","United Living","","249,656.00","Construction and Conversion","130121435","27/05/16","","Refurbishment of Voids","C1100"
"Wolverhampton City Council","http://opendatacommunities.org/id/metropolitan-district-council/wolverhampton","United Living","","245,955.00","Construction and Conversion","130121649","27/05/16","","Decent Homes - Stock Condition","C1100"
"Wolverhampton City Council","http://opendatacommunities.org/id/metropolitan-district-council/wolverhampton","Bytes Software Services Limited","","2,796.50","Training Expenses","130116824","06/05/16","Transformation","Centralised Training","R1650"
"Wolverhampton City Council","http://opendatacommunities.org/id/metropolitan-district-council/wolverhampton","Bytes Software Services Limited","","2.85","Plant, Equipment, Machinery & Computer Hardware","130116103","04/05/16","","ICT General Programme","C3000"
"Wolverhampton City Council","http://opendatacommunities.org/id/metropolitan-district-council/wolverhampton","C P Davidson & Sons Limited","","1,003.26","Equipment - Purchase","190229909","11/05/16","Fleet Services","Fleet Management","R4000"
"Wolverhampton City Council","http://opendatacommunities.org/id/metropolitan-district-council/wolverhampton","Caci Limited (Social Software)","","11,596.74","Computing - Maint Agreements","130119131","20/05/16","Youth Offending","Youth Offending Team","R4534"
"Wolverhampton City Council","http://opendatacommunities.org/id/metropolitan-district-council/wolverhampton","Cale Briparc Limited","","3,564.00","Equipment - R & M","130097027","13/05/16","Parking Services","Car Parks Operational Staff","R4003"
"Wolverhampton City Council","http://opendatacommunities.org/id/metropolitan-district-council/wolverhampton","Cale Briparc Limited","","-3,564.00","Equipment - R & M","130112261","13/05/16","Parking Services","Car Parks Operational Staff","R4003"
"Wolverhampton City Council","http://opendatacommunities.org/id/metropolitan-district-council/wolverhampton","Cale Briparc Limited","","2,786.40","Equipment - R & M","130112263","13/05/16","Parking Services","On Street Parking","R4003"
"Wolverhampton City Council","http://opendatacommunities.org/id/metropolitan-district-council/wolverhampton","Cale Briparc Limited","","2,786.40","Equipment - R & M","130112263","13/05/16","Parking Services","Car Parks Operational Staff","R4003"
"Wolverhampton City Council","http://opendatacommunities.org/id/metropolitan-district-council/wolverhampton","Cale Briparc Limited","","992.34","Equipment - R & M","130116787","13/05/16","Parking Services","On Street Parking","R4003"
"Wolverhampton City Council","http://opendatacommunities.org/id/metropolitan-district-council/wolverhampton","Cale Briparc Limited","","204.40","Equipment - R & M","130118155","06/05/16","Leisure Services","Central Baths","R4003"
"Wolverhampton City Council","http://opendatacommunities.org/id/metropolitan-district-council/wolverhampton","Cale Briparc Limited","","164.82","Equipment - Purchase","130086636","06/05/16","Leisure Services","Central Baths","R4000"
"Wolverhampton City Council","http://opendatacommunities.org/id/metropolitan-district-council/wolverhampton","Cale Briparc Limited","","-164.82","Equipment - Purchase","130086635","06/05/16","Leisure Services","Central Baths","R4000"
"Wolverhampton City Council","http://opendatacommunities.org/id/metropolitan-district-council/wolverhampton","Camfil Limited","","1,010.73","R&M - Departmental planned (internal)","130121552","25/05/16","Engineering & Civic Centre","Civic Centre","R2000"
"Wolverhampton City Council","http://opendatacommunities.org/id/metropolitan-district-council/wolverhampton","Camlad Ecology Limited","","1,626.00","Services - Professional Fees","130116264","06/05/16","Estates and Valuations","Disposal Costs","R4400"
"Wolverhampton City Council","http://opendatacommunities.org/id/metropolitan-district-council/wolverhampton","Canal & River Trust","","199,974.33","Grants paid out","130118215","20/05/16","","GF - Managing Short Trips","C5000"
"Wolverhampton City Council","http://opendatacommunities.org/id/metropolitan-district-council/wolverhampton","Canal & River Trust","","122,398.37","Grants paid out","130118024","20/05/16","","GF - Managing Short Trips","C5000"
"Wolverhampton City Council","http://opendatacommunities.org/id/metropolitan-district-council/wolverhampton","Canal & River Trust","","-122,398.37","Grants paid out","130118024","20/05/16","","GF - Managing Short Trips","C5000"
"Wolverhampton City Council","http://opendatacommunities.org/id/metropolitan-district-council/wolverhampton","Canal & River Trust","","122,398.37","Grants paid out","130118024","20/05/16","","GF - Managing Short Trips","C5000"
"Wolverhampton City Council","http://opendatacommunities.org/id/metropolitan-district-council/wolverhampton","Canal & River Trust","","1,278.52","Drainage Charges","130120849","18/05/16","School Planning & Resources","Other Support Services","R2404"
"Wolverhampton City Council","http://opendatacommunities.org/id/metropolitan-district-council/wolverhampton","Canon (UK) Limited","","748.04","Stationery","130116712","04/05/16","Planning","Planning","R4308"
"Wolverhampton City Council","http://opendatacommunities.org/id/metropolitan-district-council/wolverhampton","Capita Business Serv Limited","","278.77","Computing - Purchase of Software","130118949","13/05/16","Regulatory Services","Licensing - Licensing Act 2003","R4531"
"Wolverhampton City Council","http://opendatacommunities.org/id/metropolitan-district-council/wolverhampton","Capita Business Serv Limited","","1,250.00","Training Expenses","130118950","06/05/16","School Planning & Resources","Education Data Services","R1650"
"Wolverhampton City Council","http://opendatacommunities.org/id/metropolitan-district-council/wolverhampton","Capita Business Serv Limited","","28,212.87","Computing - Repair and Maint","130119908","11/05/16","Library Services","Global Budgets","R4533"
"Wolverhampton City Council","http://opendatacommunities.org/id/metropolitan-district-council/wolverhampton","Capita Business Serv Limited","","116,316.45","Services - General Licences","130118448","04/05/16","School Planning & Resources","Education Data Services","R4402"
"Wolverhampton City Council","http://opendatacommunities.org/id/metropolitan-district-council/wolverhampton","Capita Business Serv Limited","","-116,316.45","Services - General Licences","130118448","04/05/16","School Planning & Resources","Education Data Services","R4402"
"Wolverhampton City Council","http://opendatacommunities.org/id/metropolitan-district-council/wolverhampton","Capita Business Serv Limited","","116,316.45","Services - General Licences","130118448","04/05/16","School Planning & Resources","Education Data Services","R4402"
"Wolverhampton City Council","http://opendatacommunities.org/id/metropolitan-district-council/wolverhampton","Capita Business Serv Limited","","185,796.03","Computing - Purchase of Software","130122461","27/05/16","School Planning & Resources","ONE Team","R4531"
"Wolverhampton City Council","http://opendatacommunities.org/id/metropolitan-district-council/wolverhampton","Capita Resourcing Limited","","491.40","Agency Staff","130118340","20/05/16","Looked After Children","Peripatetic Social Work Unit - LAC","R1100"
"Wolverhampton City Council","http://opendatacommunities.org/id/metropolitan-district-council/wolverhampton","Capita Resourcing Limited","","737.10","Agency Staff","130118339","20/05/16","Looked After Children","Peripatetic Social Work Unit - LAC","R1100"
"Wolverhampton City Council","http://opendatacommunities.org/id/metropolitan-district-council/wolverhampton","Capita Resourcing Limited","","737.10","Agency Staff","130118341","20/05/16","Looked After Children","Peripatetic Social Work Unit - LAC","R1100"
"Wolverhampton City Council","http://opendatacommunities.org/id/metropolitan-district-council/wolverhampton","Capita Resourcing Limited","","737.10","Agency Staff","130118342","20/05/16","Looked After Children","Peripatetic Social Work Unit - LAC","R1100"
"Wolverhampton City Council","http://opendatacommunities.org/id/metropolitan-district-council/wolverhampton","Capita Resourcing Limited","","737.10","Agency Staff","130118343","20/05/16","Looked After Children","Peripatetic Social Work Unit - LAC","R1100"
"Wolverhampton City Council","http://opendatacommunities.org/id/metropolitan-district-council/wolverhampton","Capita Resourcing Limited","","737.10","Agency Staff","130118344","20/05/16","Looked After Children","Peripatetic Social Work Unit - LAC","R1100"
"Wolverhampton City Council","http://opendatacommunities.org/id/metropolitan-district-council/wolverhampton","Capita Resourcing Limited","","574.90","Agency Staff","130116397","20/05/16","Children in Need & Child Protection","CIN/CP Social Work Unit - Area 8","R1100"
"Wolverhampton City Council","http://opendatacommunities.org/id/metropolitan-district-council/wolverhampton","Capita Resourcing Limited","","487.50","Agency Staff","130114285","11/05/16","Looked After Children","Peripatetic Social Work Unit - LAC","R1100"
"Wolverhampton City Council","http://opendatacommunities.org/id/metropolitan-district-council/wolverhampton","Capita Resourcing Limited","","731.25","Agency Staff","130114282","11/05/16","Looked After Children","Peripatetic Social Work Unit - LAC","R1100"
"Wolverhampton City Council","http://opendatacommunities.org/id/metropolitan-district-council/wolverhampton","Capita Resourcing Limited","","731.25","Agency Staff","130114290","11/05/16","Looked After Children","Peripatetic Social Work Unit - LAC","R1100"
"Wolverhampton City Council","http://opendatacommunities.org/id/metropolitan-district-council/wolverhampton","Capita Resourcing Limited","","786.10","Agency Staff","130114286","11/05/16","Looked After Children","Peripatetic Social Work Unit - LAC","R1100"
"Wolverhampton City Council","http://opendatacommunities.org/id/metropolitan-district-council/wolverhampton","Capita Resourcing Limited","","601.25","Agency Staff","130114302","11/05/16","Looked After Children","Peripatetic Social Work Unit - LAC","R1100"
"Wolverhampton City Council","http://opendatacommunities.org/id/metropolitan-district-council/wolverhampton","Capita Resourcing Limited","","737.10","Agency Staff","130116770","11/05/16","Looked After Children","Peripatetic Social Work Unit - LAC","R1100"
"Wolverhampton City Council","http://opendatacommunities.org/id/metropolitan-district-council/wolverhampton","Capita Resourcing Limited","","731.25","Agency Staff","130114295","11/05/16","Looked After Children","Peripatetic Social Work Unit - LAC","R1100"
"Wolverhampton City Council","http://opendatacommunities.org/id/metropolitan-district-council/wolverhampton","Capita Resourcing Limited","","1,132.50","Agency Staff","130117264","11/05/16","Looked After Children","Peripatetic Social Work Unit - LAC","R1100"
"Wolverhampton City Council","http://opendatacommunities.org/id/metropolitan-district-council/wolverhampton","Capita Resourcing Limited","","1,132.50","Agency Staff","130117263","11/05/16","Looked After Children","Peripatetic Social Work Unit - LAC","R1100"
"Wolverhampton City Council","http://opendatacommunities.org/id/metropolitan-district-council/wolverhampton","Capita Resourcing Limited","","1,230.25","Agency Staff","130116401","11/05/16","Children in Need & Child Protection","CIN/CP Social Work Unit - Area 2","R1100"
"Wolverhampton City Council","http://opendatacommunities.org/id/metropolitan-district-council/wolverhampton","Capita Resourcing Limited","","1,222.20","Agency Staff","130117265","11/05/16","Children in Need & Child Protection","CIN/CP Social Work Unit - Area 8","R1100"
"Wolverhampton City Council","http://opendatacommunities.org/id/metropolitan-district-council/wolverhampton","Capita Resourcing Limited","","1,125.91","Agency Staff","130117270","11/05/16","Older People Assessment & Care Management","Assessment Team (East)","R1100"
"Wolverhampton City Council","http://opendatacommunities.org/id/metropolitan-district-council/wolverhampton","Capita Resourcing Limited","","1,128.75","Agency Staff","130117266","11/05/16","Physical Disabilities Assessment","Physical & Sensory Disabilities Management","R1100"
"Wolverhampton City Council","http://opendatacommunities.org/id/metropolitan-district-council/wolverhampton","Capita Resourcing Limited","","578.13","Agency Staff","130114293","11/05/16","Looked After Children","Looked After Team 1","R1100"
"Wolverhampton City Council","http://opendatacommunities.org/id/metropolitan-district-council/wolverhampton","Capita Resourcing Limited","","997.50","Agency Staff","130115247","11/05/16","Children in Need & Child Protection","CIN/CP Social Work Unit - Area 2","R1100"
"Wolverhampton City Council","http://opendatacommunities.org/id/metropolitan-district-council/wolverhampton","Capita Resourcing Limited","","1,212.80","Agency Staff","130117269","11/05/16","Children in Need & Child Protection","CIN/CP Social Work Unit - Area 8","R1100"
"Wolverhampton City Council","http://opendatacommunities.org/id/metropolitan-district-council/wolverhampton","Capita Resourcing Limited","","578.13","Agency Staff","130116400","04/05/16","Looked After Children","Looked After Team 1","R1100"
"Wolverhampton City Council","http://opendatacommunities.org/id/metropolitan-district-council/wolverhampton","Capita Resourcing Limited","","1,096.50","Agency Staff","130116398","04/05/16","Physical Disabilities Assessment","Physical & Sensory Disabilities Management","R1100"
"Wolverhampton City Council","http://opendatacommunities.org/id/metropolitan-district-council/wolverhampton","Capita Resourcing Limited","","1,230.25","Agency Staff","130116399","04/05/16","Physical Disabilities Assessment","Physical & Sensory Disabilities Management","R1100"
"Wolverhampton City Council","http://opendatacommunities.org/id/metropolitan-district-council/wolverhampton","Capita Resourcing Limited","","1,125.91","Agency Staff","130116404","04/05/16","Older People Assessment & Care Management","Assessment Team (East)","R1100"
"Wolverhampton City Council","http://opendatacommunities.org/id/metropolitan-district-council/wolverhampton","Capita Resourcing Limited","","601.25","Agency Staff","130114289","04/05/16","Looked After Children","Peripatetic Social Work Unit - LAC","R1100"
"Wolverhampton City Council","http://opendatacommunities.org/id/metropolitan-district-council/wolverhampton","Capita Resourcing Limited","","676.88","Agency Staff","130114284","04/05/16","Looked After Children","Peripatetic Social Work Unit - LAC","R1100"
"Wolverhampton City Council","http://opendatacommunities.org/id/metropolitan-district-council/wolverhampton","Capita Resourcing Limited","","491.40","Agency Staff","130116769","04/05/16","Looked After Children","Peripatetic Social Work Unit - LAC","R1100"
"Wolverhampton City Council","http://opendatacommunities.org/id/metropolitan-district-council/wolverhampton","Capita Resourcing Limited","","679.55","Agency Staff","130114297","04/05/16","Looked After Children","Peripatetic Social Work Unit - LAC","R1100"
"Wolverhampton City Council","http://opendatacommunities.org/id/metropolitan-district-council/wolverhampton","Capita Resourcing Limited","","1,132.50","Agency Staff","130115242","04/05/16","Looked After Children","Peripatetic Social Work Unit - LAC","R1100"
"Wolverhampton City Council","http://opendatacommunities.org/id/metropolitan-district-council/wolverhampton","Capita Resourcing Limited","","1,132.50","Agency Staff","130115243","04/05/16","Looked After Children","Peripatetic Social Work Unit - LAC","R1100"
"Wolverhampton City Council","http://opendatacommunities.org/id/metropolitan-district-council/wolverhampton","Capita Resourcing Limited","","737.10","Agency Staff","130119211","18/05/16","Looked After Children","Peripatetic Social Work Unit - LAC","R1100"
"Wolverhampton City Council","http://opendatacommunities.org/id/metropolitan-district-council/wolverhampton","Capita Resourcing Limited","","737.10","Agency Staff","130119210","18/05/16","Looked After Children","Peripatetic Social Work Unit - LAC","R1100"
"Wolverhampton City Council","http://opendatacommunities.org/id/metropolitan-district-council/wolverhampton","Capita Resourcing Limited","","1,230.25","Agency Staff","130118091","18/05/16","Children in Need & Child Protection","CIN/CP Social Work Unit - Area 2","R1100"
"Wolverhampton City Council","http://opendatacommunities.org/id/metropolitan-district-council/wolverhampton","Capita Resourcing Limited","","234.38","Agency Staff","130118090","18/05/16","Looked After Children","Looked After Team 1","R1100"
"Wolverhampton City Council","http://opendatacommunities.org/id/metropolitan-district-council/wolverhampton","Capita Resourcing Limited","","578.13","Agency Staff","130118095","18/05/16","Looked After Children","Looked After Team 1","R1100"
"Wolverhampton City Council","http://opendatacommunities.org/id/metropolitan-district-council/wolverhampton","Capita Resourcing Limited","","1,147.50","Agency Staff","130118087","18/05/16","Children in Need & Child Protection","CIN/CP Social Work Unit - Area 3B","R1100"
"Wolverhampton City Council","http://opendatacommunities.org/id/metropolitan-district-council/wolverhampton","Capita Resourcing Limited","","1,196.30","Agency Staff","130118099","18/05/16","Children in Need & Child Protection","CIN/CP Social Work Unit - Area 8","R1100"
"Wolverhampton City Council","http://opendatacommunities.org/id/metropolitan-district-council/wolverhampton","Capita Resourcing Limited","","64.35","Agency Staff","130118100","18/05/16","Physical Disabilities Assessment","Physical & Sensory Disabilities Management","R1100"
"Wolverhampton City Council","http://opendatacommunities.org/id/metropolitan-district-council/wolverhampton","Capita Resourcing Limited","","5.85","Agency Staff","130118863","25/05/16","Children in Need & Child Protection","CIN/CP Social Work Unit - Area 3A","R1100"
"Wolverhampton City Council","http://opendatacommunities.org/id/metropolitan-district-council/wolverhampton","Capita Resourcing Limited","","7.20","Agency Staff","130118862","25/05/16","Children in Need & Child Protection","CIN/CP Social Work Unit - Area 3A","R1100"
"Wolverhampton City Council","http://opendatacommunities.org/id/metropolitan-district-council/wolverhampton","Capita Resourcing Limited","","22.50","Agency Staff","130118864","25/05/16","Children in Need & Child Protection","CIN Agency","R1100"
"Wolverhampton City Council","http://opendatacommunities.org/id/metropolitan-district-council/wolverhampton","Capita Resourcing Limited","","27.90","Agency Staff","130118865","25/05/16","Children in Need & Child Protection","CIN Agency","R1100"
"Wolverhampton City Council","http://opendatacommunities.org/id/metropolitan-district-council/wolverhampton","Capita Resourcing Limited","","11.25","Agency Staff","130118866","25/05/16","Children in Need & Child Protection","CIN Agency","R1100"
"Wolverhampton City Council","http://opendatacommunities.org/id/metropolitan-district-council/wolverhampton","Capita Resourcing Limited","","30.60","Agency Staff","130118877","25/05/16","Children in Need & Child Protection","CIN Agency","R1100"
"Wolverhampton City Council","http://opendatacommunities.org/id/metropolitan-district-council/wolverhampton","Capita Resourcing Limited","","33.75","Agency Staff","130118867","25/05/16","Children in Need & Child Protection","CIN Agency","R1100"
"Wolverhampton City Council","http://opendatacommunities.org/id/metropolitan-district-council/wolverhampton","Capita Resourcing Limited","","21.15","Agency Staff","130118870","25/05/16","Children in Need & Child Protection","CIN Agency","R1100"
"Wolverhampton City Council","http://opendatacommunities.org/id/metropolitan-district-council/wolverhampton","Capita Resourcing Limited","","17.10","Agency Staff","130118871","25/05/16","Children in Need & Child Protection","CIN Agency","R1100"
"Wolverhampton City Council","http://opendatacommunities.org/id/metropolitan-district-council/wolverhampton","Capita Resourcing Limited","","15.75","Agency Staff","130118874","25/05/16","Children in Need & Child Protection","CIN Agency","R1100"
"Wolverhampton City Council","http://opendatacommunities.org/id/metropolitan-district-council/wolverhampton","Capita Resourcing Limited","","1,396.13","Agency Staff","130118088","25/05/16","Children in Need & Child Protection","CIN/CP Social Work Unit - Area 3B","R1100"
"Wolverhampton City Council","http://opendatacommunities.org/id/metropolitan-district-council/wolverhampton","Capita Resourcing Limited","","1,112.63","Agency Staff","130119947","25/05/16","Physical Disabilities Assessment","Physical & Sensory Disabilities Management","R1100"
"Wolverhampton City Council","http://opendatacommunities.org/id/metropolitan-district-council/wolverhampton","Capita Resourcing Limited","","578.13","Agency Staff","130118856","25/05/16","Looked After Children","Looked After Team 1","R1100"
"Wolverhampton City Council","http://opendatacommunities.org/id/metropolitan-district-council/wolverhampton","Capita Resourcing Limited","","1,132.50","Agency Staff","130118853","25/05/16","Looked After Children","Peripatetic Social Work Unit - LAC","R1100"
"Wolverhampton City Council","http://opendatacommunities.org/id/metropolitan-district-council/wolverhampton","Capita Resourcing Limited","","9.00","Agency Staff","130118872","25/05/16","Children in Need & Child Protection","CIN/CP Social Work Unit - Area 3A","R1100"
"Wolverhampton City Council","http://opendatacommunities.org/id/metropolitan-district-council/wolverhampton","Capita Resourcing Limited","","3.60","Agency Staff","130118873","25/05/16","Children in Need & Child Protection","CIN/CP Social Work Unit - Area 3A","R1100"
"Wolverhampton City Council","http://opendatacommunities.org/id/metropolitan-district-council/wolverhampton","Capita Resourcing Limited","","4.50","Agency Staff","130118878","25/05/16","Children in Need & Child Protection","CIN/CP Social Work Unit - Area 3A","R1100"
"Wolverhampton City Council","http://opendatacommunities.org/id/metropolitan-district-council/wolverhampton","Capita Resourcing Limited","","2.70","Agency Staff","130118875","25/05/16","Children in Need & Child Protection","CIN/CP Social Work Unit - Area 3A","R1100"
"Wolverhampton City Council","http://opendatacommunities.org/id/metropolitan-district-council/wolverhampton","Capita Resourcing Limited","","2.70","Agency Staff","130118876","25/05/16","Children in Need & Child Protection","CIN/CP Social Work Unit - Area 3A","R1100"
"Wolverhampton City Council","http://opendatacommunities.org/id/metropolitan-district-council/wolverhampton","Capita Resourcing Limited","","491.40","Agency Staff","130121728","25/05/16","Looked After Children","Peripatetic Social Work Unit - LAC","R1100"
"Wolverhampton City Council","http://opendatacommunities.org/id/metropolitan-district-council/wolverhampton","Capita Resourcing Limited","","737.10","Agency Staff","130121727","25/05/16","Looked After Children","Peripatetic Social Work Unit - LAC","R1100"
"Wolverhampton City Council","http://opendatacommunities.org/id/metropolitan-district-council/wolverhampton","Capita Resourcing Limited","","982.80","Agency Staff","130121729","25/05/16","Looked After Children","Peripatetic Social Work Unit - LAC","R1100"
"Wolverhampton City Council","http://opendatacommunities.org/id/metropolitan-district-council/wolverhampton","Capita Resourcing Limited","","106.47","Agency Staff","130121730","25/05/16","Looked After Children","Peripatetic Social Work Unit - LAC","R1100"
"Wolverhampton City Council","http://opendatacommunities.org/id/metropolitan-district-council/wolverhampton","Capita Resourcing Limited","","737.10","Agency Staff","130121726","25/05/16","Looked After Children","Peripatetic Social Work Unit - LAC","R1100"
"Wolverhampton City Council","http://opendatacommunities.org/id/metropolitan-district-council/wolverhampton","Capita Resourcing Limited","","1,402.25","Agency Staff","130118097","25/05/16","Children in Need & Child Protection","CIN/CP Social Work Unit - Area 3B","R1100"
"Wolverhampton City Council","http://opendatacommunities.org/id/metropolitan-district-council/wolverhampton","Capita Resourcing Limited","","1,090.13","Agency Staff","130118092","25/05/16","Children in Need & Child Protection","CIN/CP Social Work Unit - Area 3B","R1100"
"Wolverhampton City Council","http://opendatacommunities.org/id/metropolitan-district-council/wolverhampton","Capita Resourcing Limited","","1,230.25","Agency Staff","130118857","25/05/16","Children in Need & Child Protection","CIN/CP Social Work Unit - Area 2","R1100"
"Wolverhampton City Council","http://opendatacommunities.org/id/metropolitan-district-council/wolverhampton","Capita Resourcing Limited","","1,075.88","Agency Staff","130118855","25/05/16","Looked After Children","Peripatetic Social Work Unit - LAC","R1100"
"Wolverhampton City Council","http://opendatacommunities.org/id/metropolitan-district-council/wolverhampton","Capita Resourcing Limited","","1,125.91","Agency Staff","130118861","25/05/16","Older People Assessment & Care Management","Assessment Team (East)","R1100"
"Wolverhampton City Council","http://opendatacommunities.org/id/metropolitan-district-council/wolverhampton","Capita Resourcing Limited","","16.20","Agency Staff","130118869","25/05/16","Children in Need & Child Protection","CIN/CP Social Work Unit - Area 3A","R1100"
"Wolverhampton City Council","http://opendatacommunities.org/id/metropolitan-district-council/wolverhampton","Capita Resourcing Limited","","0.90","Agency Staff","130118868","25/05/16","Children in Need & Child Protection","CIN/CP Social Work Unit - Area 3A","R1100"
"Wolverhampton City Council","http://opendatacommunities.org/id/metropolitan-district-council/wolverhampton","Capita Resourcing Limited","","1,346.63","Agency Staff","130122064","27/05/16","Physical Disabilities Assessment","Physical & Sensory Disabilities Management","R1100"
"Wolverhampton City Council","http://opendatacommunities.org/id/metropolitan-district-council/wolverhampton","Capita Resourcing Limited","","1,096.50","Agency Staff","130122063","27/05/16","Physical Disabilities Assessment","Physical & Sensory Disabilities Management","R1100"
"Wolverhampton City Council","http://opendatacommunities.org/id/metropolitan-district-council/wolverhampton","Capita Resourcing Limited","","1,230.25","Agency Staff","130122061","27/05/16","Physical Disabilities Assessment","Physical & Sensory Disabilities Management","R1100"
"Wolverhampton City Council","http://opendatacommunities.org/id/metropolitan-district-council/wolverhampton","Capita Resourcing Limited","","1,230.25","Agency Staff","130122062","27/05/16","Physical Disabilities Assessment","Physical & Sensory Disabilities Management","R1100"
"Wolverhampton City Council","http://opendatacommunities.org/id/metropolitan-district-council/wolverhampton","Capita Resourcing Limited (Crvs)","","793.65","Computing - Licences","130119656","25/05/16","The Hub","Criminal Convictions Checking","R4535"
"Wolverhampton City Council","http://opendatacommunities.org/id/metropolitan-district-council/wolverhampton","Capitol Mobility Services Limited","","80.00","R&M - Departmental planned (external)","130117985","11/05/16","Parking Services","Shopmobility","R2001"
"Wolverhampton City Council","http://opendatacommunities.org/id/metropolitan-district-council/wolverhampton","Capitol Mobility Services Limited","","190.00","R&M - Departmental planned (external)","130117985","11/05/16","Parking Services","Shopmobility","R2001"
"Wolverhampton City Council","http://opendatacommunities.org/id/metropolitan-district-council/wolverhampton","Care Monitoring 2000 Limited","","6,366.19","Computing - Maint Agreements","130115567","11/05/16","Older People Assessment & Care Management","Older People Assessment & Care Management","R4534"
"Wolverhampton City Council","http://opendatacommunities.org/id/metropolitan-district-council/wolverhampton","Care Quality Commission","","22,628.00","Services - Professional Fees","130117657","13/05/16","Older People Provider Services","Older People Provider Management","R4400"
"Wolverhampton City Council","http://opendatacommunities.org/id/metropolitan-district-council/wolverhampton","Care Quality Commission","","-22,628.00","Services - Professional Fees","130117657","13/05/16","Older People Provider Services","Older People Provider Management","R4400"
"Wolverhampton City Council","http://opendatacommunities.org/id/metropolitan-district-council/wolverhampton","Care Quality Commission","","22,628.00","Services - Professional Fees","130117657","13/05/16","Older People Provider Services","Older People Provider Management","R4400"
"Wolverhampton City Council","http://opendatacommunities.org/id/metropolitan-district-council/wolverhampton","Care Shop","","345.18","Equipment - Purchase","130121278","25/05/16","Older People Provider Services","Bradley Lodge Resource Centre","R4000"
"Wolverhampton City Council","http://opendatacommunities.org/id/metropolitan-district-council/wolverhampton","Care Shop","","-13.00","Equipment - Purchase","130121280","25/05/16","Older People Provider Services","Bradley Lodge Resource Centre","R4000"
"Wolverhampton City Council","http://opendatacommunities.org/id/metropolitan-district-council/wolverhampton","Care4Health Limited","","1,086.75","Agency Staff","130116791","13/05/16","Independent Living Service","Independent Living Service","R1100"
"Wolverhampton City Council","http://opendatacommunities.org/id/metropolitan-district-council/wolverhampton","Care4Health Limited","","49.28","Agency Staff","130116791","13/05/16","Independent Living Service","Independent Living Service","R1100"
"Wolverhampton City Council","http://opendatacommunities.org/id/metropolitan-district-council/wolverhampton","C�Art Art Transport Limited","","1,355.00","Services - Professional Fees","130120184","13/05/16","Culture Arts & Heritage","David Ward Exhibition - NPO ACE WAG","R4400"
"Wolverhampton City Council","http://opendatacommunities.org/id/metropolitan-district-council/wolverhampton","C�Art Art Transport Limited","","950.00","Services - Professional Fees","130117306","06/05/16","Culture Arts & Heritage","Black Art Movement (HLF)","R4400"
"Wolverhampton City Council","http://opendatacommunities.org/id/metropolitan-district-council/wolverhampton","Cartridge Save Limited","","1,068.67","Equipment - R & M","130119896","20/05/16","Operation & Maintenance of Existing Network","UTC Wolverhampton","R4003"
"Wolverhampton City Council","http://opendatacommunities.org/id/metropolitan-district-council/wolverhampton","Carver (Wolverhampton) Limited","","112.50","R&M - Departmental planned (internal)","130114259","13/05/16","Engineering & Civic Centre","Statutory Services (10RM)","R2000"
"Wolverhampton City Council","http://opendatacommunities.org/id/metropolitan-district-council/wolverhampton","Carver (Wolverhampton) Limited","","37.00","Materials","130120828","18/05/16","Environmental Maintenance","Ground Maintenance West","R4007"
"Wolverhampton City Council","http://opendatacommunities.org/id/metropolitan-district-council/wolverhampton","Carwood Motor Units Limited","","385.00","Services - Professional Fees","190229870","11/05/16","Fleet Services","Fleet Management","R4400"
"Wolverhampton City Council","http://opendatacommunities.org/id/metropolitan-district-council/wolverhampton","Castlecroft Medial Practice","","73.86","Services - Professional Fees","190230901","13/05/16","Looked After Children","Fostering Team & Allowances","R4400"
"Wolverhampton City Council","http://opendatacommunities.org/id/metropolitan-district-council/wolverhampton","Celsius Design Limited","","1,998.00","R&M - Departmental planned (internal)","130120998","20/05/16","Engineering & Civic Centre","Statutory Services (10RM)","R2000"
"Wolverhampton City Council","http://opendatacommunities.org/id/metropolitan-district-council/wolverhampton","Cent.Learn.P�Ship Trustt/A Heathpark","","183,650.00","Grant Payments","190230864","13/05/16","Schools","Westcroft Special School","R4700"
"Wolverhampton City Council","http://opendatacommunities.org/id/metropolitan-district-council/wolverhampton","Central City Cars Limited/Central Taxis","","175.75","Hire of Vehicles","130121268","20/05/16","Schools","Colton Hills Community School","R3200"
"Wolverhampton City Council","http://opendatacommunities.org/id/metropolitan-district-council/wolverhampton","GO Carz","","666.50","Client Transport","130111015","13/05/16","Children in Need & Child Protection","Head of Service - CINCP","R3042"
"Wolverhampton City Council","http://opendatacommunities.org/id/metropolitan-district-council/wolverhampton","GO Carz","","555.00","Client Transport","130119757","25/05/16","School Planning & Resources","Secondary- Transport","R3042"
